Service Area Categorisation,Service Division Categorisation,Responsible Unit,Expenses Types,Detailed Expenses Type,Expense Code,Narrative,Payment Date,Transaction Number,Order ID,Amount,Capital/Revenue,Supplier Name,Supplier ID,Customer ID
Infrastructure and Networks,Highways,Chief Executive's Unit,Current Assets,Inventories,Stock Received Suspense,,11/07/2014,10382572,808446,"6,929.00",R,Tata Steel UK Ltd,,
Infrastructure and Networks,Highways,Chief Executive's Unit,Current Assets,Inventories,Stock Received Suspense,,25/07/2014,10385960,808574,"1,265.60",R,Arco Ltd,,
Infrastructure and Networks,Highways,Chief Executive's Unit,Current Assets,Inventories,Stock Received Suspense,,25/07/2014,10386011,808574,283.21,R,Arco Ltd,,
Infrastructure and Networks,Highways,Chief Executive's Unit,Current Assets,Inventories,Stock Received Suspense,,08/07/2014,10381302,808492,"24,917.76",R,Certas Energy UK,,
Infrastructure and Networks,Highways,Chief Executive's Unit,Current Assets,Inventories,Stock Received Suspense,,08/07/2014,10381292,808474,"4,023.10",R,REDACTED PERSONAL DATA,,
Control Division,Control Dept,Control,Current Liabilities,Short Term Creditors,Resource Link Payments,,08/07/2014,10381555,0,18.00,R,Marie Curie Cancer Care,,
Control Division,Control Dept,Control,Current Liabilities,Short Term Creditors,Resource Link Payments,,08/07/2014,10381568,0,"4,692.95",R,Clerical Medical Investment Group,,
Control Division,Control Dept,Control,Current Liabilities,Short Term Creditors,Resource Link Payments,,11/07/2014,10381559,0,74.79,R,DWP CMS Employers,,
Control Division,Control Dept,Control,Current Liabilities,Short Term Creditors,Resource Link Payments,,08/07/2014,10381561,0,456.96,R,Monmouthshire C.C.,,
Control Division,Control Dept,Control,Current Liabilities,Short Term Creditors,Resource Link Payments,,11/07/2014,10381565,0,111.23,R,HMCTS Wales Enforcement Office,,
Control Division,Control Dept,Control,Current Liabilities,Short Term Creditors,Resource Link Payments,,08/07/2014,10381553,0,486.40,R,GMB National Administration Unit,,
Schools Total,Schools,MCC Schools,Employees,Direct Employee Expenses,Salaries,,29/07/2014,10385530,0,446.40,R,New Directions Recruitment Ltd,,
Schools Total,School Group 7 � Pupil Capacity 501-1800,MCC Schools,Employees,Direct Employee Expenses,Agency Staff,,08/07/2014,10382105,80029139,230.43,R,New Directions Recruitment Ltd,,
Schools Total,School Group 7 � Pupil Capacity 501-1800,MCC Schools,Employees,Direct Employee Expenses,Agency Staff,,08/07/2014,10382106,80028962,675.00,R,Teaching Personnel,,
Schools Total,School Group 7 � Pupil Capacity 501-1800,MCC Schools,Employees,Direct Employee Expenses,Agency Staff,,18/07/2014,10384173,80029143,375.00,R,Education Staffing Solutions Ltd,,
Schools Total,School Group 7 � Pupil Capacity 501-1800,MCC Schools,Employees,Direct Employee Expenses,Agency Staff,,18/07/2014,10384174,80029143,400.00,R,Education Staffing Solutions Ltd,,
Schools Total,School Group 7 � Pupil Capacity 501-1800,MCC Schools,Employees,Direct Employee Expenses,Agency Staff,,18/07/2014,10384177,80029143,80.00,R,Education Staffing Solutions Ltd,,
Schools Total,School Group 7 � Pupil Capacity 501-1800,MCC Schools,Employees,Direct Employee Expenses,Agency Staff,,18/07/2014,10384199,80029310,75.00,R,Capita Education Resourcing,,
Schools Total,School Group 7 � Pupil Capacity 501-1800,MCC Schools,Employees,Direct Employee Expenses,Agency Staff,,04/07/2014,10381038,80028961,705.00,R,Meridian Education,,
Schools Total,School Group 7 � Pupil Capacity 501-1800,MCC Schools,Employees,Direct Employee Expenses,Agency Staff,,01/07/2014,10381046,80028761,675.00,R,Teaching Personnel,,
Schools Total,School Group 7 � Pupil Capacity 501-1800,MCC Schools,Employees,Direct Employee Expenses,Agency Staff,,01/07/2014,10381051,80028958,400.00,R,Education Staffing Solutions Ltd,,
Schools Total,School Group 7 � Pupil Capacity 501-1800,MCC Schools,Employees,Direct Employee Expenses,Agency Staff,,25/07/2014,10385968,80029147,285.00,R,Capita Education Resourcing,,
Schools Total,School Group 7 � Pupil Capacity 501-1800,MCC Schools,Employees,Direct Employee Expenses,Agency Staff,,01/07/2014,10381047,80028758,475.00,R,ITN Mark Education,,
Schools Total,School Group 7 � Pupil Capacity 501-1800,MCC Schools,Employees,Direct Employee Expenses,Agency Staff,,01/07/2014,10381039,80028766,520.00,R,Capita Education Resourcing,,
Schools Total,School Group 7 � Pupil Capacity 501-1800,MCC Schools,Employees,Direct Employee Expenses,Agency Staff,,01/07/2014,10381043,80028766,208.00,R,Capita Education Resourcing,,
Schools Total,School Group 7 � Pupil Capacity 501-1800,MCC Schools,Employees,Direct Employee Expenses,Agency Staff,,04/07/2014,10379998,80027545,918.00,R,New Directions Recruitment Ltd,,
Schools Total,School Group 7 � Pupil Capacity 501-1800,MCC Schools,Employees,Direct Employee Expenses,Agency Staff,,18/07/2014,10384204,80029309,810.00,R,Teaching Personnel,,
Schools Total,School Group 7 � Pupil Capacity 501-1800,MCC Schools,Employees,Direct Employee Expenses,Agency Staff,,18/07/2014,10384222,80029148,260.00,R,Supply Desk Ltd,,
Schools Total,School Group 7 � Pupil Capacity 501-1800,MCC Schools,Employees,Direct Employee Expenses,Agency Staff,,18/07/2014,10383743,0,432.00,R,REDACTED DATA,,
Schools Total,School Group 7 � Pupil Capacity 501-1800,MCC Schools,Employees,Direct Employee Expenses,Agency Staff,,11/07/2014,10382857,0,220.00,R,Supply Desk Ltd,,
Schools Total,School Group 7 � Pupil Capacity 501-1800,MCC Schools,Employees,Direct Employee Expenses,Agency Staff,,11/07/2014,10382853,0,101.00,R,Meridian Business Support,,
Schools Total,School Group 7 � Pupil Capacity 501-1800,MCC Schools,Employees,Direct Employee Expenses,Agency Staff,,01/07/2014,10381076,0,110.00,R,Capita Education Resourcing,,
Schools Total,School Group 1 � Pupil Capacity 1-143,MCC Schools,Employees,Direct Employee Expenses,Agency Staff,,11/07/2014,10382638,80027908,85.85,R,Teaching Personnel,,
Schools Total,School Group 1 � Pupil Capacity 1-143,MCC Schools,Employees,Direct Employee Expenses,Agency Staff,,11/07/2014,10382677,80027916,72.00,R,New Directions Recruitment Ltd,,
Schools Total,School Group 1 � Pupil Capacity 1-143,MCC Schools,Employees,Direct Employee Expenses,Agency Staff,,08/07/2014,10381397,0,84.85,R,Teaching Personnel,,
Schools Total,School Group 2 � Pupil Capacity 144-314,MCC Schools,Employees,Direct Employee Expenses,Agency Staff,,04/07/2014,10381281,0,339.00,R,Prospero Teaching,,
Schools Total,School Group 2 � Pupil Capacity 144-314,MCC Schools,Employees,Direct Employee Expenses,Agency Staff,,18/07/2014,10383986,0,212.00,R,Prospero Teaching,,
Schools Total,School Group 2 � Pupil Capacity 144-314,MCC Schools,Employees,Direct Employee Expenses,Agency Staff,,18/07/2014,10383880,0,500.00,R,Prospero Teaching,,
Schools Total,SCHGRP3 � School Group 3 � Pupil Capacity 315-500,MCC Schools,Employees,Direct Employee Expenses,Agency Staff,,01/07/2014,10380838,0,378.63,R,Travail Employment Group,,
Schools Total,School Group 2 � Pupil Capacity 144-314,MCC Schools,Employees,Direct Employee Expenses,Agency Staff,,11/07/2014,10382179,0,60.00,R,Teaching 4 Wales Ltd,,
Schools Total,School Group 2 � Pupil Capacity 144-314,MCC Schools,Employees,Direct Employee Expenses,Agency Staff,,11/07/2014,10382184,0,460.00,R,Teaching 4 Wales Ltd,,
Schools Total,School Group 2 � Pupil Capacity 144-314,MCC Schools,Employees,Direct Employee Expenses,Agency Staff,,04/07/2014,10381739,0,60.00,R,Teaching 4 Wales Ltd,,
Schools Total,SCHGRP3 � School Group 3 � Pupil Capacity 315-500,MCC Schools,Employees,Direct Employee Expenses,Agency Staff,,11/07/2014,10382405,0,381.55,R,New Directions Recruitment Ltd,,
Schools Total,SCHGRP3 � School Group 3 � Pupil Capacity 315-500,MCC Schools,Employees,Direct Employee Expenses,Agency Staff,,15/07/2014,10383440,0,80.00,R,Back Office Support Services Ltd (Education Supply Pool),,
Schools Total,SCHGRP3 � School Group 3 � Pupil Capacity 315-500,MCC Schools,Employees,Direct Employee Expenses,Agency Staff,,04/07/2014,10381061,0,339.00,R,Teaching 4 Wales Ltd,,
Schools Total,School Group 2 � Pupil Capacity 144-314,MCC Schools,Employees,Direct Employee Expenses,Agency Staff,,18/07/2014,10384008,0,131.30,R,New Directions Recruitment Ltd,,
Schools Total,School Group 2 � Pupil Capacity 144-314,MCC Schools,Employees,Direct Employee Expenses,Agency Staff,,18/07/2014,10384010,0,131.30,R,New Directions Recruitment Ltd,,
Schools Total,School Group 2 � Pupil Capacity 144-314,MCC Schools,Employees,Direct Employee Expenses,Agency Staff,,08/07/2014,10382246,80028912,85.00,R,New Directions Recruitment Ltd,,
Schools Total,School Group 2 � Pupil Capacity 144-314,MCC Schools,Employees,Direct Employee Expenses,Agency Staff,,18/07/2014,10384239,80029282,133.05,R,Teaching Personnel,,
Schools Total,School Group 2 � Pupil Capacity 144-314,MCC Schools,Employees,Direct Employee Expenses,Agency Staff,,29/07/2014,10386406,80029632,147.00,R,New Directions Recruitment Ltd,,
Schools Total,School Group 1 � Pupil Capacity 1-143,MCC Schools,Employees,Direct Employee Expenses,Agency Staff,,08/07/2014,10381993,0,413.95,R,New Directions Recruitment Ltd,,
Schools Total,SCHGRP3 � School Group 3 � Pupil Capacity 315-500,MCC Schools,Employees,Direct Employee Expenses,Agency Staff,,01/07/2014,10380882,80029063,133.32,R,New Directions Recruitment Ltd,,
Schools Total,School Group 2 � Pupil Capacity 144-314,MCC Schools,Employees,Direct Employee Expenses,Agency Staff,,25/07/2014,10383954,0,133.62,R,New Directions Recruitment Ltd,,
Schools Total,School Group 2 � Pupil Capacity 144-314,MCC Schools,Employees,Direct Employee Expenses,Agency Staff,,04/07/2014,10381200,0,126.50,R,Bay Resourcing,,
Schools Total,School Group 2 � Pupil Capacity 144-314,MCC Schools,Employees,Direct Employee Expenses,Agency Staff,,29/07/2014,10385120,0,126.50,R,Bay Resourcing,,
Schools Total,School Group 2 � Pupil Capacity 144-314,MCC Schools,Employees,Direct Employee Expenses,Agency Staff,,29/07/2014,10385128,0,253.00,R,Bay Resourcing,,
Schools Total,School Group 2 � Pupil Capacity 144-314,MCC Schools,Employees,Direct Employee Expenses,Agency Staff,,29/07/2014,10385115,0,253.00,R,Bay Resourcing,,
Schools Total,School Group 2 � Pupil Capacity 144-314,MCC Schools,Employees,Direct Employee Expenses,Agency Staff,,18/07/2014,10383888,0,280.00,R,Teaching 4 Wales Ltd,,
Schools Total,School Group 2 � Pupil Capacity 144-314,MCC Schools,Employees,Direct Employee Expenses,Agency Staff,,22/07/2014,10384938,80029540,80.00,R,Accent on Education,,
Schools Effectiveness Grant & Welsh In Education Grant,Schools Better Schools Fund,MCC Schools,Employees,Direct Employee Expenses,Agency Staff,,08/07/2014,10381881,0,83.00,R,New Directions Recruitment Ltd,,
Schools Effectiveness Grant & Welsh In Education Grant,Schools Better Schools Fund,MCC Schools,Employees,Direct Employee Expenses,Agency Staff,,18/07/2014,10384004,0,131.30,R,New Directions Recruitment Ltd,,
Infrastructure and Networks,Property Services & Facilities Management,Chief Executive's Unit,Employees,Direct Employee Expenses,Agency Staff,,11/07/2014,10381156,0,"1,314.61",R,Randstad Employment Bureau Ltd,,
Infrastructure and Networks,Property Services & Facilities Management,Chief Executive's Unit,Employees,Direct Employee Expenses,Agency Staff,,15/07/2014,10382795,0,945.00,R,Randstad Employment Bureau Ltd,,
Infrastructure and Networks,Waste and Street Services,Chief Executive's Unit,Employees,Direct Employee Expenses,Agency Staff,,11/07/2014,10381156,0,252.23,R,Randstad Employment Bureau Ltd,,
Infrastructure and Networks,Waste and Street Services,Chief Executive's Unit,Employees,Direct Employee Expenses,Agency Staff,,11/07/2014,10381888,0,3.83,R,Randstad Employment Bureau Ltd,,
Infrastructure and Networks,Waste and Street Services,Chief Executive's Unit,Employees,Direct Employee Expenses,Agency Staff,,11/07/2014,10381888,0,38.25,R,Randstad Employment Bureau Ltd,,
Children Services,Children Services Teams,Social Care and Health,Employees,Direct Employee Expenses,Agency Staff,,11/07/2014,10381888,0,25.65,R,Randstad Employment Bureau Ltd,,
Children Services,Children Services Teams,Social Care and Health,Employees,Direct Employee Expenses,Agency Staff,,11/07/2014,10381888,0,960.75,R,Randstad Employment Bureau Ltd,,
Children Services,Children Services Teams,Social Care and Health,Employees,Direct Employee Expenses,Agency Staff,,15/07/2014,10382795,0,35.10,R,Randstad Employment Bureau Ltd,,
Children Services,Children Services Teams,Social Care and Health,Employees,Direct Employee Expenses,Agency Staff,,11/07/2014,10381156,0,51.75,R,Randstad Employment Bureau Ltd,,
Children Services,Children Services Teams,Social Care and Health,Employees,Direct Employee Expenses,Agency Staff,,11/07/2014,10381156,0,805.20,R,Randstad Employment Bureau Ltd,,
Children Services,Children Services Teams,Social Care and Health,Employees,Direct Employee Expenses,Agency Staff,,11/07/2014,10381888,0,54.45,R,Randstad Employment Bureau Ltd,,
Community Care,Community Learning Disability Team,Social Care and Health,Employees,Direct Employee Expenses,Agency Staff,,11/07/2014,10381156,0,22.50,R,Randstad Employment Bureau Ltd,,
Community Care,Community Learning Disability Team,Social Care and Health,Employees,Direct Employee Expenses,Agency Staff,,11/07/2014,10381888,0,4.50,R,Randstad Employment Bureau Ltd,,
Community Care,Community Learning Disability Team,Social Care and Health,Employees,Direct Employee Expenses,Agency Staff,,11/07/2014,10381888,0,44.10,R,Randstad Employment Bureau Ltd,,
Community Care,Community Learning Disability Team,Social Care and Health,Employees,Direct Employee Expenses,Agency Staff,,15/07/2014,10382795,0,46.35,R,Randstad Employment Bureau Ltd,,
Community Care,Community Learning Disability Team,Social Care and Health,Employees,Direct Employee Expenses,Agency Staff,,15/07/2014,10382795,0,"1,024.80",R,Randstad Employment Bureau Ltd,,
Schools Total,School Group 7 � Pupil Capacity 501-1800,MCC Schools,Employees,Indirect Employee Expenses,Replacement,,11/07/2014,10383193,0,123.00,R,Education Staffing Solutions Ltd,,
Schools Total,School Group 7 � Pupil Capacity 501-1800,MCC Schools,Employees,Indirect Employee Expenses,Replacement,,25/07/2014,10385168,0,492.00,R,Education Staffing Solutions Ltd,,
Schools Total,School Group 7 � Pupil Capacity 501-1800,MCC Schools,Employees,Indirect Employee Expenses,Replacement,,25/07/2014,10385166,0,95.00,R,Education Staffing Solutions Ltd,,
Schools Total,School Group 7 � Pupil Capacity 501-1800,MCC Schools,Employees,Indirect Employee Expenses,Replacement,,25/07/2014,10385170,0,122.00,R,New Directions Recruitment Ltd,,
Schools Total,School Group 2 � Pupil Capacity 144-314,MCC Schools,Employees,Indirect Employee Expenses,Replacement,,11/07/2014,10382832,0,83.00,R,New Directions Recruitment Ltd,,
Schools Effectiveness Grant & Welsh In Education Grant,Schools Better Schools Fund,MCC Schools,Employees,Indirect Employee Expenses,Replacement,,25/07/2014,10384772,0,121.00,R,Teaching 4 Wales Ltd,,
Infrastructure and Networks,Home to School Transport Dept,Chief Executive's Unit,Employees,Direct Employee Expenses,Subsistence,,08/07/2014,10381986,0,44.18,R,REDACTED DATA,,
Schools Total,School Group 7 � Pupil Capacity 501-1800,MCC Schools,Employees,Indirect Employee Expenses,Free Staff Meals,,11/07/2014,10383190,0,-141.70,R,Accuro Catering Limited,,
Schools Total,School Group 7 � Pupil Capacity 501-1800,MCC Schools,Employees,Indirect Employee Expenses,"Course, Conference And Seminar Fees",,22/07/2014,10384604,0,170.00,R,REDACTED DATA,,
Schools Total,Schools,MCC Schools,Employees,Indirect Employee Expenses,"Course, Conference And Seminar Fees",,11/07/2014,10383250,80029353,95.00,R,AT-Bristol STEM Learning,,
Schools Total,School Group 1 � Pupil Capacity 1-143,MCC Schools,Employees,Indirect Employee Expenses,"Course, Conference And Seminar Fees",,01/07/2014,10381022,80028838,56.00,R,Out to Learn Willow,,
Commercial & People Development,Technology & Organisational Design,Enterprise,Employees,Indirect Employee Expenses,"Course, Conference And Seminar Fees",,18/07/2014,10383684,10057703,400.00,R,Welsh Government,,
Schools Effectiveness Grant & Welsh In Education Grant,Schools Better Schools Fund,MCC Schools,Employees,Indirect Employee Expenses,"Course, Conference And Seminar Fees",,08/07/2014,10382264,80028990,60.00,R,Gareth Coombes Consultancy LTD,,
Schools Total,School Group 7 � Pupil Capacity 501-1800,MCC Schools,Employees,Indirect Employee Expenses,Staff Welfare,,18/07/2014,10383743,0,6.35,R,REDACTED DATA,,
Infrastructure and Networks,Home to School Transport Dept,Chief Executive's Unit,Employees,Direct Employee Expenses,Travel Claims Allowance,,04/07/2014,10381806,0,122.67,R,REDACTED DATA,,
Schools Total,School Group 7 � Pupil Capacity 501-1800,MCC Schools,Employees,Direct Employee Expenses,Work Experience Expenses,,25/07/2014,10385088,0,820.90,R,Stagecoach Services Ltd,,
Infrastructure and Networks,Property Services & Facilities Management,Chief Executive's Unit,Income,Customer and Client Receipts,Fee Income and Recharges,,11/07/2014,10381156,0,-540.36,R,Randstad Employment Bureau Ltd,,
Community Led Delivery,General Fund Housing,Enterprise,Income,Customer and Client Receipts,Fee Income and Recharges,,18/07/2014,10383731,0,-950.00,R,Mobility Services,,
Community Led Delivery,General Fund Housing,Enterprise,Income,Customer and Client Receipts,Fee Income and Recharges,,29/07/2014,10386262,0,-950.00,R,PARS Ltd,,
Schools Total,SCHGRP3 � School Group 3 � Pupil Capacity 315-500,MCC Schools,Premises,"Repairs, Alterations & Maintenance of Buildings",Building Improvements / Maintenance,,15/07/2014,10382972,0,16.59,R,REDACTED DATA,,
Schools Total,School Group 2 � Pupil Capacity 144-314,MCC Schools,Premises,"Repairs, Alterations & Maintenance of Buildings",Building Improvements / Maintenance,,08/07/2014,10382162,0,870.00,R,Eden Garden Services,,
Schools Total,School Group 2 � Pupil Capacity 144-314,MCC Schools,Premises,"Repairs, Alterations & Maintenance of Buildings",Building Improvements / Maintenance,,08/07/2014,10382170,0,14.50,R,Aqualogic,,
Appropriations,Appropriations,Appropriations,Premises,"Repairs, Alterations & Maintenance of Buildings",Building Improvements / Maintenance,,04/07/2014,10381678,0,80.00,R,Comis Security LTD,,
Infrastructure and Networks,Property Services & Facilities Management,Chief Executive's Unit,Premises,"Repairs, Alterations & Maintenance of Buildings",Building Improvements / Maintenance,,22/07/2014,10385010,90021987,378.00,R,GKR Maintenance & Building Co Ltd,,
Infrastructure and Networks,Property Services & Facilities Management,Chief Executive's Unit,Premises,"Repairs, Alterations & Maintenance of Buildings",Building Improvements / Maintenance,,18/07/2014,10383659,90021586,16.56,R,Fire Safety Direct,,
Infrastructure and Networks,Property Services & Facilities Management,Chief Executive's Unit,Premises,"Repairs, Alterations & Maintenance of Buildings",Building Improvements / Maintenance,,18/07/2014,10383659,90021652,22.08,R,Fire Safety Direct,,
Infrastructure and Networks,Property Services & Facilities Management,Chief Executive's Unit,Premises,"Repairs, Alterations & Maintenance of Buildings",Building Improvements / Maintenance,,25/07/2014,10385207,90021646,81.00,R,Kone Plc,,
Infrastructure and Networks,Property Services & Facilities Management,Chief Executive's Unit,Premises,"Repairs, Alterations & Maintenance of Buildings",Building Improvements / Maintenance,,25/07/2014,10385196,90021579,112.50,R,Kone Plc,,
Infrastructure and Networks,Property Services & Facilities Management,Chief Executive's Unit,Premises,"Repairs, Alterations & Maintenance of Buildings",Building Improvements / Maintenance,,25/07/2014,10385208,90021651,162.00,R,Kone Plc,,
Infrastructure and Networks,Property Services & Facilities Management,Chief Executive's Unit,Premises,"Repairs, Alterations & Maintenance of Buildings",Building Improvements / Maintenance,,25/07/2014,10385210,90021585,112.50,R,Kone Plc,,
Infrastructure and Networks,Property Services & Facilities Management,Chief Executive's Unit,Premises,"Repairs, Alterations & Maintenance of Buildings",Building Improvements / Maintenance,,04/07/2014,10380408,90019115,266.00,R,Lorne Stewart  Plc,,
Infrastructure and Networks,Property Services & Facilities Management,Chief Executive's Unit,Premises,"Repairs, Alterations & Maintenance of Buildings",Building Improvements / Maintenance,,08/07/2014,10381700,90022338,385.20,R,SunGift SOLAR,,
Infrastructure and Networks,Property Services & Facilities Management,Chief Executive's Unit,Premises,"Repairs, Alterations & Maintenance of Buildings",Building Improvements / Maintenance,,15/07/2014,10382957,90021904,"9,334.00",R,Springvale Wproofing Ltd,,
Infrastructure and Networks,Property Services & Facilities Management,Chief Executive's Unit,Premises,"Repairs, Alterations & Maintenance of Buildings",Building Improvements / Maintenance,,15/07/2014,10383646,90021947,128.75,R,Legsun Ltd,,
Infrastructure and Networks,Property Services & Facilities Management,Chief Executive's Unit,Premises,"Repairs, Alterations & Maintenance of Buildings",Building Improvements / Maintenance,,15/07/2014,10383646,90022068,128.75,R,Legsun Ltd,,
Infrastructure and Networks,Property Services & Facilities Management,Chief Executive's Unit,Premises,"Repairs, Alterations & Maintenance of Buildings",Building Improvements / Maintenance,,15/07/2014,10383646,90022080,358.45,R,Legsun Ltd,,
Infrastructure and Networks,Property Services & Facilities Management,Chief Executive's Unit,Premises,"Repairs, Alterations & Maintenance of Buildings",Building Improvements / Maintenance,,25/07/2014,10383131,90022104,98.00,R,GKR Maintenance & Building Co Ltd,,
Infrastructure and Networks,Property Services & Facilities Management,Chief Executive's Unit,Premises,"Repairs, Alterations & Maintenance of Buildings",Building Improvements / Maintenance,,25/07/2014,10385651,90022112,459.75,R,Lorne Stewart  Plc,,
Infrastructure and Networks,Property Services & Facilities Management,Chief Executive's Unit,Premises,"Repairs, Alterations & Maintenance of Buildings",Building Improvements / Maintenance,,25/07/2014,10385651,90022134,545.63,R,Lorne Stewart  Plc,,
Infrastructure and Networks,Property Services & Facilities Management,Chief Executive's Unit,Premises,"Repairs, Alterations & Maintenance of Buildings",Building Improvements / Maintenance,,25/07/2014,10385750,90022370,540.00,R,Lorne Stewart  Plc,,
Infrastructure and Networks,Property Services & Facilities Management,Chief Executive's Unit,Premises,"Repairs, Alterations & Maintenance of Buildings",Building Improvements / Maintenance,,25/07/2014,10383072,90022074,59.08,R,GKR Maintenance & Building Co Ltd,,
Infrastructure and Networks,Property Services & Facilities Management,Chief Executive's Unit,Premises,"Repairs, Alterations & Maintenance of Buildings",Building Improvements / Maintenance,,25/07/2014,10383072,90022172,140.00,R,GKR Maintenance & Building Co Ltd,,
Infrastructure and Networks,Property Services & Facilities Management,Chief Executive's Unit,Premises,"Repairs, Alterations & Maintenance of Buildings",Building Improvements / Maintenance,,25/07/2014,10383072,90022174,75.60,R,GKR Maintenance & Building Co Ltd,,
Infrastructure and Networks,Property Services & Facilities Management,Chief Executive's Unit,Premises,"Repairs, Alterations & Maintenance of Buildings",Building Improvements / Maintenance,,25/07/2014,10385750,90021900,48.00,R,Lorne Stewart  Plc,,
Infrastructure and Networks,Property Services & Facilities Management,Chief Executive's Unit,Premises,"Repairs, Alterations & Maintenance of Buildings",Building Improvements / Maintenance,,25/07/2014,10385816,90022283,285.04,R,Lorne Stewart  Plc,,
Infrastructure and Networks,Property Services & Facilities Management,Chief Executive's Unit,Premises,"Repairs, Alterations & Maintenance of Buildings",Building Improvements / Maintenance,,25/07/2014,10383143,90022064,155.60,R,GKR Maintenance & Building Co Ltd,,
Infrastructure and Networks,Property Services & Facilities Management,Chief Executive's Unit,Premises,"Repairs, Alterations & Maintenance of Buildings",Building Improvements / Maintenance,,25/07/2014,10383143,90021812,36.50,R,GKR Maintenance & Building Co Ltd,,
Infrastructure and Networks,Property Services & Facilities Management,Chief Executive's Unit,Premises,"Repairs, Alterations & Maintenance of Buildings",Building Improvements / Maintenance,,25/07/2014,10385750,90022364,94.00,R,Lorne Stewart  Plc,,
Infrastructure and Networks,Property Services & Facilities Management,Chief Executive's Unit,Premises,"Repairs, Alterations & Maintenance of Buildings",Building Improvements / Maintenance,,25/07/2014,10383131,90021898,129.60,R,GKR Maintenance & Building Co Ltd,,
Infrastructure and Networks,Property Services & Facilities Management,Chief Executive's Unit,Premises,"Repairs, Alterations & Maintenance of Buildings",Building Improvements / Maintenance,,25/07/2014,10383131,90021945,99.00,R,GKR Maintenance & Building Co Ltd,,
Infrastructure and Networks,Property Services & Facilities Management,Chief Executive's Unit,Premises,"Repairs, Alterations & Maintenance of Buildings",Building Improvements / Maintenance,,25/07/2014,10383131,90022099,110.98,R,GKR Maintenance & Building Co Ltd,,
Infrastructure and Networks,Property Services & Facilities Management,Chief Executive's Unit,Premises,"Repairs, Alterations & Maintenance of Buildings",Building Improvements / Maintenance,,25/07/2014,10383131,90022290,114.00,R,GKR Maintenance & Building Co Ltd,,
Infrastructure and Networks,Property Services & Facilities Management,Chief Executive's Unit,Premises,"Repairs, Alterations & Maintenance of Buildings",Building Improvements / Maintenance,,04/07/2014,10381770,90022097,23.90,R,Legsun Ltd,,
Infrastructure and Networks,Property Services & Facilities Management,Chief Executive's Unit,Premises,"Repairs, Alterations & Maintenance of Buildings",Building Improvements / Maintenance,,22/07/2014,10384523,90021291,128.75,R,Legsun Ltd,,
Infrastructure and Networks,Property Services & Facilities Management,Chief Executive's Unit,Premises,"Repairs, Alterations & Maintenance of Buildings",Building Improvements / Maintenance,,22/07/2014,10384523,90021507,23.90,R,Legsun Ltd,,
Infrastructure and Networks,Property Services & Facilities Management,Chief Executive's Unit,Premises,"Repairs, Alterations & Maintenance of Buildings",Building Improvements / Maintenance,,22/07/2014,10384523,90022390,35.85,R,Legsun Ltd,,
Infrastructure and Networks,Property Services & Facilities Management,Chief Executive's Unit,Premises,"Repairs, Alterations & Maintenance of Buildings",Building Improvements / Maintenance,,22/07/2014,10384523,90022411,47.80,R,Legsun Ltd,,
Infrastructure and Networks,Property Services & Facilities Management,Chief Executive's Unit,Premises,"Repairs, Alterations & Maintenance of Buildings",Building Improvements / Maintenance,,18/07/2014,10382969,90021846,185.00,R,M2 Flooring Ltd,,
Infrastructure and Networks,Property Services & Facilities Management,Chief Executive's Unit,Premises,"Repairs, Alterations & Maintenance of Buildings",Building Improvements / Maintenance,,29/07/2014,10385018,760004405,"5,180.00",R,GKR Maintenance & Building Co Ltd,,
Infrastructure and Networks,Property Services & Facilities Management,Chief Executive's Unit,Premises,"Repairs, Alterations & Maintenance of Buildings",Building Improvements / Maintenance,,29/07/2014,10385729,760004112,"3,603.45",R,Lorne Stewart  Plc,,
Infrastructure and Networks,Property Services & Facilities Management,Chief Executive's Unit,Premises,"Repairs, Alterations & Maintenance of Buildings",Building Improvements / Maintenance,,18/07/2014,10383659,90021695,23.46,R,Fire Safety Direct,,
Infrastructure and Networks,Property Services & Facilities Management,Chief Executive's Unit,Premises,"Repairs, Alterations & Maintenance of Buildings",Building Improvements / Maintenance,,25/07/2014,10383131,90022125,129.60,R,GKR Maintenance & Building Co Ltd,,
Infrastructure and Networks,Property Services & Facilities Management,Chief Executive's Unit,Premises,"Repairs, Alterations & Maintenance of Buildings",Building Improvements / Maintenance,,25/07/2014,10383131,90022150,129.60,R,GKR Maintenance & Building Co Ltd,,
Infrastructure and Networks,Property Services & Facilities Management,Chief Executive's Unit,Premises,"Repairs, Alterations & Maintenance of Buildings",Building Improvements / Maintenance,,25/07/2014,10385420,90021731,180.00,R,Lorne Stewart  Plc,,
Infrastructure and Networks,Property Services & Facilities Management,Chief Executive's Unit,Premises,"Repairs, Alterations & Maintenance of Buildings",Building Improvements / Maintenance,,25/07/2014,10383143,90022093,63.00,R,GKR Maintenance & Building Co Ltd,,
Infrastructure and Networks,Property Services & Facilities Management,Chief Executive's Unit,Premises,"Repairs, Alterations & Maintenance of Buildings",Building Improvements / Maintenance,,25/07/2014,10385640,90022082,48.00,R,Lorne Stewart  Plc,,
Infrastructure and Networks,Property Services & Facilities Management,Chief Executive's Unit,Premises,"Repairs, Alterations & Maintenance of Buildings",Building Improvements / Maintenance,,25/07/2014,10383131,90021874,129.60,R,GKR Maintenance & Building Co Ltd,,
Infrastructure and Networks,Property Services & Facilities Management,Chief Executive's Unit,Premises,"Repairs, Alterations & Maintenance of Buildings",Building Improvements / Maintenance,,01/07/2014,10379923,90022139,218.26,R,Lorne Stewart  Plc,,
Infrastructure and Networks,Property Services & Facilities Management,Chief Executive's Unit,Premises,"Repairs, Alterations & Maintenance of Buildings",Building Improvements / Maintenance,,04/07/2014,10381711,90022119,433.56,R,Pontypool Glazing Ltd,,
Infrastructure and Networks,Property Services & Facilities Management,Chief Executive's Unit,Premises,"Repairs, Alterations & Maintenance of Buildings",Building Improvements / Maintenance,,22/07/2014,10384527,90022482,59.75,R,Legsun Ltd,,
Infrastructure and Networks,Property Services & Facilities Management,Chief Executive's Unit,Premises,"Repairs, Alterations & Maintenance of Buildings",Building Improvements / Maintenance,,11/07/2014,10382953,760004156,82.25,R,Carreg Fawr Developments Ltd,,
Infrastructure and Networks,Property Services & Facilities Management,Chief Executive's Unit,Premises,"Repairs, Alterations & Maintenance of Buildings",Building Improvements / Maintenance,,11/07/2014,10383043,760003676,"1,393.08",R,Legsun Ltd,,
Infrastructure and Networks,Property Services & Facilities Management,Chief Executive's Unit,Premises,"Repairs, Alterations & Maintenance of Buildings",Building Improvements / Maintenance,,11/07/2014,10383145,760004260,70.00,R,GKR Maintenance & Building Co Ltd,,
Infrastructure and Networks,Property Services & Facilities Management,Chief Executive's Unit,Premises,"Repairs, Alterations & Maintenance of Buildings",Building Improvements / Maintenance,,15/07/2014,10383044,760004255,186.68,R,Legsun Ltd,,
Infrastructure and Networks,Property Services & Facilities Management,Chief Executive's Unit,Premises,"Repairs, Alterations & Maintenance of Buildings",Building Improvements / Maintenance,,25/07/2014,10385455,760004329,"1,063.55",R,Legsun Ltd,,
Infrastructure and Networks,Property Services & Facilities Management,Chief Executive's Unit,Premises,"Repairs, Alterations & Maintenance of Buildings",Building Improvements / Maintenance,,25/07/2014,10385017,760004308,69.00,R,GKR Maintenance & Building Co Ltd,,
Infrastructure and Networks,Property Services & Facilities Management,Chief Executive's Unit,Premises,"Repairs, Alterations & Maintenance of Buildings",Building Improvements / Maintenance,,25/07/2014,10385017,760004331,259.20,R,GKR Maintenance & Building Co Ltd,,
Infrastructure and Networks,Property Services & Facilities Management,Chief Executive's Unit,Premises,"Repairs, Alterations & Maintenance of Buildings",Building Improvements / Maintenance,,25/07/2014,10385694,760004079,108.00,R,Lorne Stewart  Plc,,
Infrastructure and Networks,Property Services & Facilities Management,Chief Executive's Unit,Premises,"Repairs, Alterations & Maintenance of Buildings",Building Improvements / Maintenance,,25/07/2014,10385694,760004101,73.00,R,Lorne Stewart  Plc,,
Infrastructure and Networks,Property Services & Facilities Management,Chief Executive's Unit,Premises,"Repairs, Alterations & Maintenance of Buildings",Building Improvements / Maintenance,,25/07/2014,10385017,760004338,155.60,R,GKR Maintenance & Building Co Ltd,,
Infrastructure and Networks,Property Services & Facilities Management,Chief Executive's Unit,Premises,"Repairs, Alterations & Maintenance of Buildings",Building Improvements / Maintenance,,25/07/2014,10385687,760004203,151.00,R,Lorne Stewart  Plc,,
Infrastructure and Networks,Property Services & Facilities Management,Chief Executive's Unit,Premises,"Repairs, Alterations & Maintenance of Buildings",Building Improvements / Maintenance,,25/07/2014,10385017,760004296,226.80,R,GKR Maintenance & Building Co Ltd,,
Infrastructure and Networks,Property Services & Facilities Management,Chief Executive's Unit,Premises,"Repairs, Alterations & Maintenance of Buildings",Building Improvements / Maintenance,,22/07/2014,10384508,760004186,382.05,R,Legsun Ltd,,
Infrastructure and Networks,Property Services & Facilities Management,Chief Executive's Unit,Premises,"Repairs, Alterations & Maintenance of Buildings",Building Improvements / Maintenance,,29/07/2014,10385729,760004406,"3,584.49",R,Lorne Stewart  Plc,,
Schools Total,School Group 7 � Pupil Capacity 501-1800,MCC Schools,Premises,"Repairs, Alterations & Maintenance of Buildings",Premises Repairs And Maintenance,,18/07/2014,10384237,0,150.00,R,The Monmouthshire Window Company,,
Schools Total,School Group 7 � Pupil Capacity 501-1800,MCC Schools,Premises,"Repairs, Alterations & Maintenance of Buildings",Premises Repairs And Maintenance,,01/07/2014,10380904,80029036,388.00,R,Phs Group,,
Schools Total,SCHGRP3 � School Group 3 � Pupil Capacity 315-500,MCC Schools,Premises,"Repairs, Alterations & Maintenance of Buildings",Premises Repairs And Maintenance,,04/07/2014,10381321,80029086,"1,433.37",R,Monmouthshire C.C.,,
Schools Total,School Group 2 � Pupil Capacity 144-314,MCC Schools,Premises,"Repairs, Alterations & Maintenance of Buildings",Premises Repairs And Maintenance,,18/07/2014,10383791,80026256,448.82,R,Monmouthshire C.C.,,
Schools Total,School Group 2 � Pupil Capacity 144-314,MCC Schools,Premises,"Repairs, Alterations & Maintenance of Buildings",Premises Repairs And Maintenance,,04/07/2014,10381160,0,641.60,R,Monmouthshire C.C.,,
Schools Total,School Group 2 � Pupil Capacity 144-314,MCC Schools,Premises,"Repairs, Alterations & Maintenance of Buildings",Premises Repairs And Maintenance,,22/07/2014,10384340,0,83.34,R,Crown Paints Ltd,,
Schools Total,School Group 2 � Pupil Capacity 144-314,MCC Schools,Premises,"Repairs, Alterations & Maintenance of Buildings",Premises Repairs And Maintenance,,18/07/2014,10383878,0,15.00,R,Monmouth Electricial Suppliers,,
Schools Total,School Group 2 � Pupil Capacity 144-314,MCC Schools,Premises,"Repairs, Alterations & Maintenance of Buildings",Premises Repairs And Maintenance,,08/07/2014,10381212,0,"1,070.53",R,Monmouthshire C.C.,,
Infrastructure and Networks,Property Services & Facilities Management,Chief Executive's Unit,Premises,"Repairs, Alterations & Maintenance of Buildings",Premises Repairs And Maintenance,,18/07/2014,10383656,90022321,860.00,R,Santia Asbestos Management Ltd,,
Children Services,Children Services Teams,Social Care and Health,Premises,"Repairs, Alterations & Maintenance of Buildings",Premises Repairs And Maintenance,,04/07/2014,10381278,0,61.75,R,Johnsey Estates (1990) Ltd,,
Children Services,Children Services Teams,Social Care and Health,Premises,"Repairs, Alterations & Maintenance of Buildings",Premises Repairs And Maintenance,,04/07/2014,10381279,0,"1,394.27",R,Johnsey Estates (1990) Ltd,,
Schools Total,Schools,MCC Schools,Premises,Ground Maintenance Costs,Grounds Maintenance - Direct.,,25/07/2014,10385447,80029558,575.00,R,Gardenology Group UK Ltd,,
Schools Total,School Group 2 � Pupil Capacity 144-314,MCC Schools,Premises,Ground Maintenance Costs,Grounds Maintenance - Direct.,,18/07/2014,10384027,0,233.33,R,Morris's Of Usk Ltd,,
Schools Total,School Group 7 � Pupil Capacity 501-1800,MCC Schools,Premises,"Repairs, Alterations & Maintenance of Buildings",Security Of Premises.,,18/07/2014,10383861,0,59.00,R,Chubb Security Limited,,
Schools Total,SCHGRP3 � School Group 3 � Pupil Capacity 315-500,MCC Schools,Premises,"Repairs, Alterations & Maintenance of Buildings",Security Maintenance.,,25/07/2014,10385262,80028859,75.00,R,Chubb Electronic Security Ltd,,
Resources & Performance,Finance (LLL),Children & Young People,Premises,Energy Costs,Electricity.,,08/07/2014,10382347,0,2.47,R,EDF Energy,,
Resources & Performance,Finance (LLL),Children & Young People,Premises,Energy Costs,Electricity.,,08/07/2014,10382347,0,"7,390.98",R,EDF Energy,,
Resources & Performance,Finance (LLL),Children & Young People,Premises,Energy Costs,Electricity.,,18/07/2014,10384396,0,48.75,R,British Gas Business,,
Resources & Performance,Finance (LLL),Children & Young People,Premises,Energy Costs,Electricity.,,18/07/2014,10384487,0,23.83,R,British Gas Business,,
Schools Total,School Group 2 � Pupil Capacity 144-314,MCC Schools,Premises,Energy Costs,Electricity.,,18/07/2014,10384410,0,142.26,R,British Gas Business,,
Schools Total,School Group 2 � Pupil Capacity 144-314,MCC Schools,Premises,Energy Costs,Electricity.,,22/07/2014,10384488,0,554.93,R,British Gas Business,,
Community Led Delivery,Asset Management,Enterprise,Premises,Energy Costs,Electricity.,,22/07/2014,10384419,0,102.80,R,British Gas Business,,
Standards,Inclusions,Children & Young People,Premises,Energy Costs,Electricity.,,04/07/2014,10381581,10057762,48.00,R,British Gas Business,,
Standards,Inclusions,Children & Young People,Premises,Energy Costs,Electricity.,,04/07/2014,10381582,10057767,17.12,R,British Gas Business,,
Youth,Inclusions,Children & Young People,Premises,Energy Costs,Electricity.,,22/07/2014,10384584,0,58.36,R,British Gas Business,,
Public Life and Culture,Cultural Services,Enterprise,Premises,Energy Costs,Electricity.,,22/07/2014,10384402,0,14.63,R,British Gas Business,,
Community Led Delivery,Asset Management,Enterprise,Premises,Energy Costs,Electricity.,,29/07/2014,10386463,0,51.56,R,SWALEC,,
Public Life and Culture,Tourism,Enterprise,Premises,Energy Costs,Electricity.,,22/07/2014,10384590,0,103.99,R,British Gas Business,,
Community Led Delivery,Community Hubs,Enterprise,Premises,Energy Costs,Electricity.,,22/07/2014,10384578,0,211.59,R,British Gas Business,,
Infrastructure and Networks,Home to School Transport Dept,Chief Executive's Unit,Premises,Energy Costs,Electricity.,,08/07/2014,10382008,0,15.00,R,SWALEC,,
Adult Services,Direct Care,Social Care and Health,Premises,Energy Costs,Electricity.,,22/07/2014,10384412,0,128.04,R,British Gas Business,,
Adult Services,Direct Care Residential,Social Care and Health,Premises,Energy Costs,Electricity.,,22/07/2014,10384403,0,"1,018.61",R,British Gas Business,,
Community Led Delivery,Asset Management,Enterprise,Premises,Energy Costs,Electricity.,,15/07/2014,10382342,0,483.05,R,EDF Energy,,
Schools Total,School Group 2 � Pupil Capacity 144-314,MCC Schools,Premises,Energy Costs,Gas.,,29/07/2014,10385889,0,61.36,R,Corona Energy,,
Community Led Delivery,Asset Management,Enterprise,Premises,Energy Costs,Gas.,,29/07/2014,10385306,0,-31.89,R,British Gas Business,,
Public Life and Culture,Cultural Services,Enterprise,Premises,Energy Costs,Gas.,,29/07/2014,10385910,0,99.98,R,Corona Energy,,
Community Led Delivery,Community Hubs,Enterprise,Premises,Energy Costs,Gas.,,29/07/2014,10385931,0,96.30,R,Corona Energy,,
Public Life and Culture,Tourism,Enterprise,Premises,Energy Costs,Gas.,,29/07/2014,10385938,0,-56.40,R,Corona Energy,,
Public Life and Culture,Tourism,Enterprise,Premises,Energy Costs,Gas.,,29/07/2014,10385948,0,56.02,R,Corona Energy,,
Public Life and Culture,Tourism,Enterprise,Premises,Energy Costs,Gas.,,29/07/2014,10385945,0,45.74,R,Corona Energy,,
Infrastructure and Networks,Property Services & Facilities Management,Chief Executive's Unit,Premises,Energy Costs,Gas.,,25/07/2014,10385891,0,259.03,R,Corona Energy,,
Infrastructure and Networks,Property Services & Facilities Management,Chief Executive's Unit,Premises,Energy Costs,Gas.,,25/07/2014,10385913,0,35.06,R,Corona Energy,,
Community Led Delivery,Community Hubs,Enterprise,Premises,Water Services,Water Services-Metered.,,25/07/2014,10384816,0,275.91,R,Welsh Water,,
Community Led Delivery,Community Education,Enterprise,Premises,Water Services,Water Services-Metered.,,25/07/2014,10384841,0,"1,246.08",R,Welsh Water,,
Community Led Delivery,Asset Management,Enterprise,Premises,Water Services,Water Services-Metered.,,22/07/2014,10384835,0,"3,905.73",R,Welsh Water,,
Community Led Delivery,Asset Management,Enterprise,Premises,Water Services,Water Services-Metered.,,29/07/2014,10386450,0,7.63,R,Welsh Water,,
Community Led Delivery,General Fund Housing,Enterprise,Premises,Rents,Rents/Hire Of Premises.,,16/07/2014,10384763,0,923.69,R,Monmouthshire Housing Association Ltd,,
Community Led Delivery,General Fund Housing,Enterprise,Premises,Rents,Rents/Hire Of Premises.,,15/07/2014,10382983,0,400.00,R,REDACTED PERSONAL DATA,,
Community Led Delivery,General Fund Housing,Enterprise,Premises,Rents,Rents/Hire Of Premises.,,15/07/2014,10382986,0,440.00,R,REDACTED PERSONAL DATA,,
Community Led Delivery,General Fund Housing,Enterprise,Premises,Rents,Rents/Hire Of Premises.,,15/07/2014,10382988,0,440.00,R,REDACTED PERSONAL DATA,,
Community Led Delivery,General Fund Housing,Enterprise,Premises,Rents,Rents/Hire Of Premises.,,15/07/2014,10382991,0,400.00,R,REDACTED PERSONAL DATA,,
Commercial & People Development,Business Growth & Enterprise,Enterprise,Premises,Rents,Rents/Hire Of Premises.,,18/07/2014,10384383,10058312,"5,300.00",R,Monnow Marquees,,
Commercial & People Development,Business Growth & Enterprise,Enterprise,Premises,Rents,Rents/Hire Of Premises.,,29/07/2014,10386160,10057951,89.00,R,St Michaels Centre (Abergavenny) Trust Ltd,,
Children Services,Children Services Teams,Social Care and Health,Premises,Rents,Rents/Hire Of Premises.,,11/07/2014,10383254,10056984,4.25,R,Torfaen County Borough Council,,
Children Services,Children Services Teams,Social Care and Health,Premises,Rents,Rents/Hire Of Premises.,,11/07/2014,10383153,10054845,29.75,R,Torfaen County Borough Council,,
Children Services,Children Services Teams,Social Care and Health,Premises,Rents,Rents/Hire Of Premises.,,18/07/2014,10383701,10057431,8.50,R,Torfaen County Borough Council,,
Children Services,Children Services Teams,Social Care and Health,Premises,Rents,Rents/Hire Of Premises.,,18/07/2014,10383701,10057995,8.50,R,Torfaen County Borough Council,,
Children Services,Children Services Teams,Social Care and Health,Premises,Rents,Rents/Hire Of Premises.,,18/07/2014,10383701,10057997,8.50,R,Torfaen County Borough Council,,
Children Services,Children Services Teams,Social Care and Health,Premises,Rents,Rents/Hire Of Premises.,,04/07/2014,10381272,0,"5,187.50",R,Johnsey Estates (1990) Ltd,,
Schools Total,School Group 7 � Pupil Capacity 501-1800,MCC Schools,Premises,Cleaning and Domestic Supplies,Contract Cleaning - Premises (Direct),,11/07/2014,10382109,80027673,"14,826.51",R,Churchill Contract Services,,
Schools Total,School Group 7 � Pupil Capacity 501-1800,MCC Schools,Premises,Cleaning and Domestic Supplies,Contract Cleaning - Premises (Direct),,18/07/2014,10383863,0,"11,237.04",R,Regent Cleaning,,
Children Services,Children Services Other,Social Care and Health,Premises,Rates,Rates,,08/07/2014,10382141,0,"1,809.92",R,Monmouthshire C.C.,,
Community Led Delivery,Community Hubs,Enterprise,Premises,Cleaning and Domestic Supplies,Window Cleaning,,18/07/2014,10383634,0,150.00,R,REDACTED PERSONAL DATA,,
Schools Total,School Group 1 � Pupil Capacity 1-143,MCC Schools,Premises,Cleaning and Domestic Supplies,Toilet Requisites,,11/07/2014,10382668,80027917,48.90,R,ESPO,,
Schools Total,SCHGRP3 � School Group 3 � Pupil Capacity 315-500,MCC Schools,Premises,Cleaning and Domestic Supplies,Toilet Requisites,,18/07/2014,10384266,80029448,72.36,R,Newhall Janitorial Ltd,,
Schools Total,School Group 7 � Pupil Capacity 501-1800,MCC Schools,Supplies & Services,Catering,Catering,,18/07/2014,10383957,0,"-2,635.10",R,Aramark Plc,,
Schools Total,School Group 7 � Pupil Capacity 501-1800,MCC Schools,Supplies & Services,Catering,Catering,,18/07/2014,10383957,0,"-1,224.66",R,Aramark Plc,,
Schools Total,School Group 7 � Pupil Capacity 501-1800,MCC Schools,Supplies & Services,Catering,Catering,,18/07/2014,10383957,0,"4,967.46",R,Aramark Plc,,
Schools Total,School Group 2 � Pupil Capacity 144-314,MCC Schools,Supplies & Services,Catering,Catering,,08/07/2014,10382165,0,-12.12,R,Michael I Holdsworth Limited,,
Schools Total,School Group 2 � Pupil Capacity 144-314,MCC Schools,Supplies & Services,Catering,Catering,,08/07/2014,10382172,0,7.84,R,Michael I Holdsworth Limited,,
Schools Total,School Group 2 � Pupil Capacity 144-314,MCC Schools,Supplies & Services,Catering,Catering,,29/07/2014,10385013,0,29.10,R,Peter Broughton Ltd,,
Schools Total,School Group 2 � Pupil Capacity 144-314,MCC Schools,Supplies & Services,Catering,Catering,,18/07/2014,10384318,0,194.40,R,Coleg Gwent,,
Schools Total,School Group 7 � Pupil Capacity 501-1800,MCC Schools,Supplies & Services,"Equipment, Furniture and Materials",Equipment Purchases,,18/07/2014,10384157,80029306,46.56,R,First Stop Stationers Ltd,,
Schools Total,School Group 7 � Pupil Capacity 501-1800,MCC Schools,Supplies & Services,"Equipment, Furniture and Materials",Equipment Purchases,,29/07/2014,10386188,80029053,35.00,R,ESPO,,
Schools Total,School Group 7 � Pupil Capacity 501-1800,MCC Schools,Supplies & Services,"Equipment, Furniture and Materials",Equipment Purchases,,18/07/2014,10383923,80029285,51.75,R,Inkjets and Toners,,
Schools Total,School Group 7 � Pupil Capacity 501-1800,MCC Schools,Supplies & Services,"Equipment, Furniture and Materials",Equipment Purchases,,01/07/2014,10380908,80029040,600.00,R,Chester Music Ltd,,
Schools Total,School Group 7 � Pupil Capacity 501-1800,MCC Schools,Supplies & Services,"Equipment, Furniture and Materials",Equipment Purchases,,22/07/2014,10384604,0,70.00,R,REDACTED DATA,,
Schools Total,School Group 2 � Pupil Capacity 144-314,MCC Schools,Supplies & Services,"Equipment, Furniture and Materials",Equipment Purchases,,18/07/2014,10383993,0,179.55,R,School Stickers,,
Schools Total,School Group 2 � Pupil Capacity 144-314,MCC Schools,Supplies & Services,"Equipment, Furniture and Materials",Equipment Purchases,,18/07/2014,10383998,0,186.05,R,ESPO,,
Schools Total,School Group 2 � Pupil Capacity 144-314,MCC Schools,Supplies & Services,"Equipment, Furniture and Materials",Equipment Purchases,,11/07/2014,10382744,80028477,235.00,R,Plunge Products,,
Schools Total,School Group 2 � Pupil Capacity 144-314,MCC Schools,Supplies & Services,"Equipment, Furniture and Materials",Equipment Purchases,,04/07/2014,10381158,80029021,27.00,R,Coleg Gwent,,
Schools Total,School Group 1 � Pupil Capacity 1-143,MCC Schools,Supplies & Services,"Equipment, Furniture and Materials",Equipment Purchases,,25/07/2014,10385255,80029207,81.46,R,The Consortium,,
Schools Total,SCHGRP3 � School Group 3 � Pupil Capacity 315-500,MCC Schools,Supplies & Services,"Equipment, Furniture and Materials",Equipment Purchases,,11/07/2014,10382723,80029210,253.42,R,The Consortium,,
Schools Total,SCHGRP3 � School Group 3 � Pupil Capacity 315-500,MCC Schools,Supplies & Services,"Equipment, Furniture and Materials",Equipment Purchases,,11/07/2014,10382726,80029203,13.32,R,The Consortium,,
Schools Total,SCHGRP3 � School Group 3 � Pupil Capacity 315-500,MCC Schools,Supplies & Services,"Equipment, Furniture and Materials",Equipment Purchases,,25/07/2014,10385444,80025165,23.99,R,Early Years Resources,,
Schools Total,SCHGRP3 � School Group 3 � Pupil Capacity 315-500,MCC Schools,Supplies & Services,"Equipment, Furniture and Materials",Equipment Purchases,,04/07/2014,10381258,0,50.00,R,Coleg Gwent,,
Schools Total,School Group 2 � Pupil Capacity 144-314,MCC Schools,Supplies & Services,"Equipment, Furniture and Materials",Equipment Purchases,,08/07/2014,10381978,0,47.86,R,ESPO,,
Schools Total,School Group 2 � Pupil Capacity 144-314,MCC Schools,Supplies & Services,"Equipment, Furniture and Materials",Equipment Purchases,,18/07/2014,10383806,80029481,124.48,R,West Mercia Suppliers,,
Schools Total,SCHGRP3 � School Group 3 � Pupil Capacity 315-500,MCC Schools,Supplies & Services,"Equipment, Furniture and Materials",Equipment Purchases,,08/07/2014,10382441,80029019,6.18,R,West Mercia Suppliers,,
Schools Total,School Group 2 � Pupil Capacity 144-314,MCC Schools,Supplies & Services,"Equipment, Furniture and Materials",Equipment Purchases,,18/07/2014,10383873,0,581.00,R,Playdale Playgrounds Ltd,,
Schools Total,School Group 2 � Pupil Capacity 144-314,MCC Schools,Supplies & Services,"Equipment, Furniture and Materials",Equipment Purchases,,08/07/2014,10381424,0,26.48,R,REDACTED DATA,,
Schools Total,School Group 2 � Pupil Capacity 144-314,MCC Schools,Supplies & Services,"Equipment, Furniture and Materials",Equipment Purchases,,18/07/2014,10383813,80028768,253.76,R,West Mercia Suppliers,,
Schools Total,School Group 2 � Pupil Capacity 144-314,MCC Schools,Supplies & Services,"Equipment, Furniture and Materials",Equipment Purchases,,04/07/2014,10381948,80028078,315.00,R,ESPO,,
Schools Total,School Group 2 � Pupil Capacity 144-314,MCC Schools,Supplies & Services,"Equipment, Furniture and Materials",Equipment Purchases,,08/07/2014,10382063,80027080,20.77,R,The Consortium,,
Schools Total,School Group 2 � Pupil Capacity 144-314,MCC Schools,Supplies & Services,"Equipment, Furniture and Materials",Equipment Purchases,,04/07/2014,10381639,80029072,"3,000.00",R,Cornerstones Education Ltd,,
Schools Total,School Group 2 � Pupil Capacity 144-314,MCC Schools,Supplies & Services,"Equipment, Furniture and Materials",Equipment Purchases,,15/07/2014,10383383,0,50.00,R,Monmouthshire C.C.,,
Standards,Early Years,Children & Young People,Supplies & Services,"Equipment, Furniture and Materials",Equipment Purchases,,08/07/2014,10382261,10057621,164.88,R,West Mercia Suppliers,,
Standards,Early Years,Children & Young People,Supplies & Services,"Equipment, Furniture and Materials",Equipment Purchases,,22/07/2014,10384089,10058063,41.95,R,Hope Education Ltd,,
Public Life and Culture,Sports Developmemt,Enterprise,Supplies & Services,"Equipment, Furniture and Materials",Equipment Purchases,,15/07/2014,10382429,10057368,169.95,R,Hope Education Ltd,,
Public Life and Culture,Leisure Services,Enterprise,Supplies & Services,"Equipment, Furniture and Materials",Equipment Purchases,,08/07/2014,10381542,10057104,84.00,R,ESPO,,
Public Life and Culture,Leisure Services,Enterprise,Supplies & Services,"Equipment, Furniture and Materials",Equipment Purchases,,08/07/2014,10380371,0,-84.00,R,ESPO,,
Public Life and Culture,Leisure Services,Enterprise,Supplies & Services,"Equipment, Furniture and Materials",Equipment Purchases,,01/07/2014,10380755,0,34.94,R,REDACTED DATA,,
Public Life and Culture,Leisure Services,Enterprise,Supplies & Services,"Equipment, Furniture and Materials",Equipment Purchases,,18/07/2014,10383004,10058091,23.39,R,The Consortium,,
Public Life and Culture,Leisure Services,Enterprise,Supplies & Services,"Equipment, Furniture and Materials",Equipment Purchases,,01/07/2014,10381057,10057235,70.47,R,H D Adcock (Nelson) Ltd,,
Public Life and Culture,Cultural Services,Enterprise,Supplies & Services,"Equipment, Furniture and Materials",Equipment Purchases,,15/07/2014,10383024,0,"2,286.90",R,Up And Under Outdoor Gear Ltd.,,
Adult Services,Direct Care Residential,Social Care and Health,Supplies & Services,"Equipment, Furniture and Materials",Equipment Purchases,,29/07/2014,10384858,0,184.97,R,REDACTED DATA,,
Infrastructure and Networks,Highways,Chief Executive's Unit,Supplies & Services,"Equipment, Furniture and Materials",Salt Purchase.,,04/07/2014,10381307,808352,"3,128.86",R,Salt Union Ltd,,
Public Life and Culture,Leisure Services,Enterprise,Supplies & Services,"Equipment, Furniture and Materials",Health & Safety Equipment.,,15/07/2014,10381622,10057724,22.00,R,Laerdal Medical Ltd,,
Schools Total,School Group 1 � Pupil Capacity 1-143,MCC Schools,Supplies & Services,"Equipment, Furniture and Materials",Rental / Hire,,01/07/2014,10381020,80028841,31.20,R,OCS Group UK Limited,,
Schools Total,School Group 2 � Pupil Capacity 144-314,MCC Schools,Supplies & Services,"Equipment, Furniture and Materials",Rental / Hire,,18/07/2014,10383987,0,183.30,R,Siemens Financial Services Ltd,,
Schools Total,School Group 1 � Pupil Capacity 1-143,MCC Schools,Supplies & Services,"Equipment, Furniture and Materials",Rental / Hire,,08/07/2014,10382004,0,124.80,R,Investec Asset Finance,,
Schools Total,School Group 2 � Pupil Capacity 144-314,MCC Schools,Supplies & Services,"Equipment, Furniture and Materials",Rental / Hire,,11/07/2014,10382158,0,649.00,R,Siemens Financial Services Ltd,,
Infrastructure and Networks,Highways,Chief Executive's Unit,Supplies & Services,"Equipment, Furniture and Materials",Rental / Hire,,08/07/2014,10381405,0,174.24,R,Chepstow Contract Rentals,,
Children Services,Children Services Teams,Social Care and Health,Supplies & Services,"Equipment, Furniture and Materials",Rental / Hire,,18/07/2014,10383701,10057431,8.50,R,Torfaen County Borough Council,,
Public Life and Culture,Leisure Services,Enterprise,Supplies & Services,"Equipment, Furniture and Materials",Repairs & Maintenance.,,08/07/2014,10381962,10057942,15.77,R,Dale Sauna Ltd,,
Public Life and Culture,Leisure Services,Enterprise,Supplies & Services,"Equipment, Furniture and Materials",Repairs & Maintenance.,,01/07/2014,10380755,0,17.46,R,REDACTED DATA,,
Public Life and Culture,Leisure Services,Enterprise,Supplies & Services,"Equipment, Furniture and Materials",Repairs & Maintenance.,,18/07/2014,10384079,10057928,213.33,R,Gemini Blinds Gwent,,
Public Life and Culture,Tourism,Enterprise,Supplies & Services,"Equipment, Furniture and Materials",Repairs & Maintenance.,,15/07/2014,10382965,0,156.60,R,REDACTED PERSONAL DATA,,
Adult Services,Direct Care Residential,Social Care and Health,Supplies & Services,"Equipment, Furniture and Materials",Repairs & Maintenance.,,29/07/2014,10386399,10058417,60.00,R,Newport City Council,,
Adult Services,Direct Care,Social Care and Health,Supplies & Services,"Equipment, Furniture and Materials",Repairs & Maintenance.,,18/07/2014,10384076,10058250,660.95,R,Arjo Med Ab Ltd,,
Infrastructure and Networks,Transport Department,Chief Executive's Unit,Supplies & Services,"Equipment, Furniture and Materials",Materials & Consumables.,,08/07/2014,10381712,0,12.44,R,Mon & Border Motor Factors Ltd,,
Infrastructure and Networks,Transport Department,Chief Executive's Unit,Supplies & Services,"Equipment, Furniture and Materials",Materials & Consumables.,,08/07/2014,10381786,0,361.60,R,REDACTED PERSONAL DATA,,
Infrastructure and Networks,Transport Department,Chief Executive's Unit,Supplies & Services,"Equipment, Furniture and Materials",Materials & Consumables.,,18/07/2014,10383283,0,299.80,R,Mon & Border Motor Factors Ltd,,
Infrastructure and Networks,Property Services & Facilities Management,Chief Executive's Unit,Supplies & Services,"Equipment, Furniture and Materials",Materials & Consumables.,,04/07/2014,10380840,0,"4,536.58",R,Michael I Holdsworth Limited,,
Infrastructure and Networks,Property Services & Facilities Management,Chief Executive's Unit,Supplies & Services,"Equipment, Furniture and Materials",Materials & Consumables.,,11/07/2014,10380984,0,"3,937.36",R,Michael I Holdsworth Limited,,
Infrastructure and Networks,Property Services & Facilities Management,Chief Executive's Unit,Supplies & Services,"Equipment, Furniture and Materials",Materials & Consumables.,,01/07/2014,10380986,0,889.92,R,Total Produce(Cardiff),,
Infrastructure and Networks,Property Services & Facilities Management,Chief Executive's Unit,Supplies & Services,"Equipment, Furniture and Materials",Materials & Consumables.,,01/07/2014,10380851,0,116.24,R,Castell Howell Foods Ltd,,
Infrastructure and Networks,Property Services & Facilities Management,Chief Executive's Unit,Supplies & Services,"Equipment, Furniture and Materials",Materials & Consumables.,,25/07/2014,10384676,0,850.44,R,Total Produce(Cardiff),,
Infrastructure and Networks,Property Services & Facilities Management,Chief Executive's Unit,Supplies & Services,"Equipment, Furniture and Materials",Materials & Consumables.,,01/07/2014,10380846,0,"1,595.50",R,Castell Howell Foods Ltd,,
Infrastructure and Networks,Property Services & Facilities Management,Chief Executive's Unit,Supplies & Services,"Equipment, Furniture and Materials",Materials & Consumables.,,25/07/2014,10385825,0,456.75,R,Welsh Bros Foods Ltd,,
Infrastructure and Networks,Property Services & Facilities Management,Chief Executive's Unit,Supplies & Services,"Equipment, Furniture and Materials",Materials & Consumables.,,18/07/2014,10383717,0,"3,662.58",R,Michael I Holdsworth Limited,,
Infrastructure and Networks,Property Services & Facilities Management,Chief Executive's Unit,Supplies & Services,"Equipment, Furniture and Materials",Materials & Consumables.,,18/07/2014,10383714,0,"2,741.21",R,Michael I Holdsworth Limited,,
Schools Total,School Group 7 � Pupil Capacity 501-1800,MCC Schools,Supplies & Services,"Equipment, Furniture and Materials",Materials & Consumables.,,08/07/2014,10382098,80029091,29.50,R,K & M (Wholesale Supp) Ltd,,
Schools Total,School Group 7 � Pupil Capacity 501-1800,MCC Schools,Supplies & Services,"Equipment, Furniture and Materials",Materials & Consumables.,,11/07/2014,10382420,80029041,61.64,R,Timstar Laboratory Supplies,,
Schools Total,School Group 7 � Pupil Capacity 501-1800,MCC Schools,Supplies & Services,"Equipment, Furniture and Materials",Materials & Consumables.,,08/07/2014,10382129,80028845,2.98,R,ESPO,,
Schools Total,School Group 7 � Pupil Capacity 501-1800,MCC Schools,Supplies & Services,"Equipment, Furniture and Materials",Materials & Consumables.,,15/07/2014,10382751,80029041,23.92,R,Timstar Laboratory Supplies,,
Schools Total,School Group 7 � Pupil Capacity 501-1800,MCC Schools,Supplies & Services,"Equipment, Furniture and Materials",Materials & Consumables.,,18/07/2014,10384188,80029038,118.72,R,Breckland Scientific Supplies Ltd,,
Schools Total,School Group 7 � Pupil Capacity 501-1800,MCC Schools,Supplies & Services,"Equipment, Furniture and Materials",Materials & Consumables.,,25/07/2014,10385086,0,5.49,R,Music Sales Ltd,,
Schools Total,School Group 7 � Pupil Capacity 501-1800,MCC Schools,Supplies & Services,"Equipment, Furniture and Materials",Materials & Consumables.,,22/07/2014,10383676,80029370,79.96,R,Seton Ltd,,
Schools Total,School Group 7 � Pupil Capacity 501-1800,MCC Schools,Supplies & Services,"Equipment, Furniture and Materials",Materials & Consumables.,,22/07/2014,10384209,80029268,29.88,R,Consortium Orders,,
Schools Total,School Group 7 � Pupil Capacity 501-1800,MCC Schools,Supplies & Services,"Equipment, Furniture and Materials",Materials & Consumables.,,18/07/2014,10383746,0,5.79,R,REDACTED DATA,,
Schools Total,School Group 7 � Pupil Capacity 501-1800,MCC Schools,Supplies & Services,"Equipment, Furniture and Materials",Materials & Consumables.,,18/07/2014,10383746,0,27.00,R,REDACTED DATA,,
Schools Total,School Group 7 � Pupil Capacity 501-1800,MCC Schools,Supplies & Services,"Equipment, Furniture and Materials",Materials & Consumables.,,18/07/2014,10383743,0,21.24,R,REDACTED DATA,,
Schools Total,Schools,MCC Schools,Supplies & Services,"Equipment, Furniture and Materials",Materials & Consumables.,,08/07/2014,10382220,0,95.51,R,REDACTED DATA,,
Schools Total,Schools,MCC Schools,Supplies & Services,"Equipment, Furniture and Materials",Materials & Consumables.,,08/07/2014,10382220,0,0.90,R,REDACTED DATA,,
Schools Total,Schools,MCC Schools,Supplies & Services,"Equipment, Furniture and Materials",Materials & Consumables.,,11/07/2014,10383249,80029354,200.00,R,SWASSH,,
Schools Total,Schools,MCC Schools,Supplies & Services,"Equipment, Furniture and Materials",Materials & Consumables.,,18/07/2014,10383939,80029347,5.95,R,LCP,,
Schools Total,School Group 2 � Pupil Capacity 144-314,MCC Schools,Supplies & Services,"Equipment, Furniture and Materials",Materials & Consumables.,,15/07/2014,10382366,0,124.20,R,Balan Sports International Ltd,,
Schools Total,School Group 2 � Pupil Capacity 144-314,MCC Schools,Supplies & Services,"Equipment, Furniture and Materials",Materials & Consumables.,,25/07/2014,10384789,0,449.92,R,ESPO,,
Schools Total,School Group 1 � Pupil Capacity 1-143,MCC Schools,Supplies & Services,"Equipment, Furniture and Materials",Materials & Consumables.,,11/07/2014,10381875,0,39.80,R,Set (Office Supplies) Limited,,
Schools Total,SCHGRP3 � School Group 3 � Pupil Capacity 315-500,MCC Schools,Supplies & Services,"Equipment, Furniture and Materials",Materials & Consumables.,,04/07/2014,10381376,80029100,202.00,R,Algebra Business Solutions,,
Schools Total,School Group 2 � Pupil Capacity 144-314,MCC Schools,Supplies & Services,"Equipment, Furniture and Materials",Materials & Consumables.,,18/07/2014,10383808,80028830,130.38,R,The Consortium,,
Schools Total,School Group 2 � Pupil Capacity 144-314,MCC Schools,Supplies & Services,"Equipment, Furniture and Materials",Materials & Consumables.,,04/07/2014,10381133,80028878,1.69,R,The Consortium,,
Schools Total,School Group 2 � Pupil Capacity 144-314,MCC Schools,Supplies & Services,"Equipment, Furniture and Materials",Materials & Consumables.,,18/07/2014,10383809,80028719,122.50,R,Westfield Advertising Specialities Ltd,,
Schools Total,SCHGRP3 � School Group 3 � Pupil Capacity 315-500,MCC Schools,Supplies & Services,"Equipment, Furniture and Materials",Materials & Consumables.,,11/07/2014,10382212,0,173.04,R,Survey Monkey (Luxembourg),,
Schools Total,SCHGRP3 � School Group 3 � Pupil Capacity 315-500,MCC Schools,Supplies & Services,"Equipment, Furniture and Materials",Materials & Consumables.,,25/07/2014,10385284,80029435,76.89,R,The Consortium,,
Schools Total,SCHGRP3 � School Group 3 � Pupil Capacity 315-500,MCC Schools,Supplies & Services,"Equipment, Furniture and Materials",Materials & Consumables.,,08/07/2014,10381619,80029076,482.04,R,The Consortium,,
Schools Total,SCHGRP3 � School Group 3 � Pupil Capacity 315-500,MCC Schools,Supplies & Services,"Equipment, Furniture and Materials",Materials & Consumables.,,18/07/2014,10384466,80029242,19.99,R,West Mercia Suppliers,,
Schools Total,School Group 2 � Pupil Capacity 144-314,MCC Schools,Supplies & Services,"Equipment, Furniture and Materials",Materials & Consumables.,,18/07/2014,10383666,0,4.66,R,REDACTED DATA,,
Schools Total,School Group 2 � Pupil Capacity 144-314,MCC Schools,Supplies & Services,"Equipment, Furniture and Materials",Materials & Consumables.,,18/07/2014,10383675,80029389,91.00,R,Art Matters,,
Schools Total,School Group 2 � Pupil Capacity 144-314,MCC Schools,Supplies & Services,"Equipment, Furniture and Materials",Materials & Consumables.,,18/07/2014,10384080,80029279,226.21,R,Hope Education Ltd,,
Schools Total,School Group 2 � Pupil Capacity 144-314,MCC Schools,Supplies & Services,"Equipment, Furniture and Materials",Materials & Consumables.,,18/07/2014,10383783,80028737,54.80,R,ESPO,,
Schools Total,School Group 2 � Pupil Capacity 144-314,MCC Schools,Supplies & Services,"Equipment, Furniture and Materials",Materials & Consumables.,,25/07/2014,10385415,80029279,6.30,R,Hope Education Ltd,,
Schools Total,School Group 2 � Pupil Capacity 144-314,MCC Schools,Supplies & Services,"Equipment, Furniture and Materials",Materials & Consumables.,,01/07/2014,10380947,80028471,12.95,R,Hope Education Ltd,,
Schools Total,School Group 2 � Pupil Capacity 144-314,MCC Schools,Supplies & Services,"Equipment, Furniture and Materials",Materials & Consumables.,,25/07/2014,10385282,80029474,75.10,R,The Consortium,,
Schools Total,School Group 2 � Pupil Capacity 144-314,MCC Schools,Supplies & Services,"Equipment, Furniture and Materials",Materials & Consumables.,,18/07/2014,10384245,80028960,65.00,R,Lyreco Ltd,,
Schools Total,SCHGRP3 � School Group 3 � Pupil Capacity 315-500,MCC Schools,Supplies & Services,"Equipment, Furniture and Materials",Materials & Consumables.,,22/07/2014,10384968,80029443,184.71,R,West Mercia Suppliers,,
Schools Total,SCHGRP3 � School Group 3 � Pupil Capacity 315-500,MCC Schools,Supplies & Services,"Equipment, Furniture and Materials",Materials & Consumables.,,18/07/2014,10384255,80029424,309.16,R,Ev-entz,,
Schools Total,SCHGRP3 � School Group 3 � Pupil Capacity 315-500,MCC Schools,Supplies & Services,"Equipment, Furniture and Materials",Materials & Consumables.,,18/07/2014,10384486,80029386,123.64,R,The Consortium,,
Schools Total,School Group 2 � Pupil Capacity 144-314,MCC Schools,Supplies & Services,"Equipment, Furniture and Materials",Materials & Consumables.,,11/07/2014,10378214,80027522,78.85,R,School Merit Stickers,,
Schools Total,School Group 2 � Pupil Capacity 144-314,MCC Schools,Supplies & Services,"Equipment, Furniture and Materials",Materials & Consumables.,,08/07/2014,10382125,80028233,158.00,R,ESPO,,
Schools Total,School Group 2 � Pupil Capacity 144-314,MCC Schools,Supplies & Services,"Equipment, Furniture and Materials",Materials & Consumables.,,04/07/2014,10377113,80028233,266.00,R,ESPO,,
Schools Total,School Group 2 � Pupil Capacity 144-314,MCC Schools,Supplies & Services,"Equipment, Furniture and Materials",Materials & Consumables.,,04/07/2014,10381202,0,95.52,R,ESPO,,
Standards,Early Years,Children & Young People,Supplies & Services,"Equipment, Furniture and Materials",Materials & Consumables.,,29/07/2014,10386203,10056382,18.00,R,Bradbury Milk,,
Standards,Early Years,Children & Young People,Supplies & Services,"Equipment, Furniture and Materials",Materials & Consumables.,,04/07/2014,10381897,10056373,77.50,R,Lloyds Dairies,,
Standards,Early Years,Children & Young People,Supplies & Services,"Equipment, Furniture and Materials",Materials & Consumables.,,04/07/2014,10381904,10056373,48.96,R,Lloyds Dairies,,
Standards,Early Years,Children & Young People,Supplies & Services,"Equipment, Furniture and Materials",Materials & Consumables.,,04/07/2014,10381909,10056380,67.32,R,Redbridge Produce & Flowers,,
Standards,Early Years,Children & Young People,Supplies & Services,"Equipment, Furniture and Materials",Materials & Consumables.,,29/07/2014,10386240,10056373,59.50,R,Lloyds Dairies,,
Standards,Early Years,Children & Young People,Supplies & Services,"Equipment, Furniture and Materials",Materials & Consumables.,,29/07/2014,10386205,10056370,360.00,R,Bradbury Milk,,
Standards,Early Years,Children & Young People,Supplies & Services,"Equipment, Furniture and Materials",Materials & Consumables.,,29/07/2014,10386212,10056370,355.00,R,Bradbury Milk,,
Public Life and Culture,Cultural Services,Enterprise,Supplies & Services,"Equipment, Furniture and Materials",Materials & Consumables.,,08/07/2014,10380760,0,11.20,R,Monmouthshire C C Monmouth Museum,,
Public Life and Culture,Cultural Services,Enterprise,Supplies & Services,"Equipment, Furniture and Materials",Materials & Consumables.,,04/07/2014,10381695,10057726,177.75,R,Dauphin Restoration Limited,,
Youth,Inclusions,Children & Young People,Supplies & Services,"Equipment, Furniture and Materials",Materials & Consumables.,,04/07/2014,10381287,0,166.88,R,REDACTED PERSONAL DATA,,
Public Life and Culture,Cultural Services,Enterprise,Supplies & Services,"Equipment, Furniture and Materials",Materials & Consumables.,,08/07/2014,10381829,0,319.88,R,City Locksmiths Gwent Ltd,,
Public Life and Culture,Cultural Services,Enterprise,Supplies & Services,"Equipment, Furniture and Materials",Materials & Consumables.,,22/07/2014,10384378,0,24.16,R,Baileys DIY ltd Abergavenny,,
Infrastructure and Networks,Waste and Street Services,Chief Executive's Unit,Supplies & Services,"Equipment, Furniture and Materials",Materials & Consumables.,,11/07/2014,10382921,0,9.20,R,Fast Fluid Power Ltd,,
Infrastructure and Networks,Waste and Street Services,Chief Executive's Unit,Supplies & Services,"Equipment, Furniture and Materials",Materials & Consumables.,,29/07/2014,10385743,0,504.90,R,David Evans Agricultural Ltd,,
Infrastructure and Networks,Waste and Street Services,Chief Executive's Unit,Supplies & Services,"Equipment, Furniture and Materials",Materials & Consumables.,,25/07/2014,10385772,0,74.90,R,Cambrian Group UK,,
Infrastructure and Networks,Waste and Street Services,Chief Executive's Unit,Supplies & Services,"Equipment, Furniture and Materials",Materials & Consumables.,,25/07/2014,10385788,0,91.62,R,Cambrian Group UK,,
Infrastructure and Networks,Waste and Street Services,Chief Executive's Unit,Supplies & Services,"Equipment, Furniture and Materials",Materials & Consumables.,,25/07/2014,10385770,0,39.66,R,Cambrian Group UK,,
Infrastructure and Networks,Waste and Street Services,Chief Executive's Unit,Supplies & Services,"Equipment, Furniture and Materials",Materials & Consumables.,,25/07/2014,10385713,0,207.25,R,REDACTED PERSONAL DATA,,
Infrastructure and Networks,Waste and Street Services,Chief Executive's Unit,Supplies & Services,"Equipment, Furniture and Materials",Materials & Consumables.,,08/07/2014,10381500,0,78.00,R,Cambrian Group UK,,
Infrastructure and Networks,Waste and Street Services,Chief Executive's Unit,Supplies & Services,"Equipment, Furniture and Materials",Materials & Consumables.,,08/07/2014,10381501,0,410.68,R,Cambrian Group UK,,
Infrastructure and Networks,Waste and Street Services,Chief Executive's Unit,Supplies & Services,"Equipment, Furniture and Materials",Materials & Consumables.,,04/07/2014,10381504,0,62.50,R,Cambrian Group UK,,
Infrastructure and Networks,Waste and Street Services,Chief Executive's Unit,Supplies & Services,"Equipment, Furniture and Materials",Materials & Consumables.,,08/07/2014,10381492,0,395.00,R,David Evans Agricultural Ltd,,
Infrastructure and Networks,Waste and Street Services,Chief Executive's Unit,Supplies & Services,"Equipment, Furniture and Materials",Materials & Consumables.,,04/07/2014,10381253,0,456.61,R,Spaldings (UK) Ltd,,
Infrastructure and Networks,Waste and Street Services,Chief Executive's Unit,Supplies & Services,"Equipment, Furniture and Materials",Materials & Consumables.,,11/07/2014,10382385,0,135.00,R,Pontrilas Merchants,,
Infrastructure and Networks,Waste and Street Services,Chief Executive's Unit,Supplies & Services,"Equipment, Furniture and Materials",Materials & Consumables.,,25/07/2014,10385751,0,195.00,R,Steve Ambler and Sons Tree Specialists Ltd,,
Infrastructure and Networks,Waste and Street Services,Chief Executive's Unit,Supplies & Services,"Equipment, Furniture and Materials",Materials & Consumables.,,25/07/2014,10385715,0,80.00,R,HL Morgan & Sons,,
Infrastructure and Networks,Waste and Street Services,Chief Executive's Unit,Supplies & Services,"Equipment, Furniture and Materials",Materials & Consumables.,,04/07/2014,10381246,0,33.10,R,Forest Sand,,
Infrastructure and Networks,Waste and Street Services,Chief Executive's Unit,Supplies & Services,"Equipment, Furniture and Materials",Materials & Consumables.,,08/07/2014,10381502,0,241.65,R,Cambrian Group UK,,
Infrastructure and Networks,Waste and Street Services,Chief Executive's Unit,Supplies & Services,"Equipment, Furniture and Materials",Materials & Consumables.,,04/07/2014,10381493,0,290.75,R,Trailparts,,
Infrastructure and Networks,Waste and Street Services,Chief Executive's Unit,Supplies & Services,"Equipment, Furniture and Materials",Materials & Consumables.,,04/07/2014,10381496,0,14.50,R,Shorts Auto Elect. Swansea Ltd,,
Infrastructure and Networks,Waste and Street Services,Chief Executive's Unit,Supplies & Services,"Equipment, Furniture and Materials",Materials & Consumables.,,25/07/2014,10384651,0,565.95,R,Earth Anchors Ltd,,
Infrastructure and Networks,Waste and Street Services,Chief Executive's Unit,Supplies & Services,"Equipment, Furniture and Materials",Materials & Consumables.,,18/07/2014,10383033,0,-2.34,R,Princes Gate Cool Water Ltd,,
Infrastructure and Networks,Waste and Street Services,Chief Executive's Unit,Supplies & Services,"Equipment, Furniture and Materials",Materials & Consumables.,,22/07/2014,10384658,0,72.56,R,ATS Euromaster Ltd,,
Infrastructure and Networks,Highways,Chief Executive's Unit,Supplies & Services,"Equipment, Furniture and Materials",Materials & Consumables.,,22/07/2014,10384854,808581,32.85,R,Hanson Quarry Products Europe Ltd,,
Infrastructure and Networks,Highways,Chief Executive's Unit,Supplies & Services,"Equipment, Furniture and Materials",Materials & Consumables.,,29/07/2014,10386351,0,271.56,R,Mabey Hire Ltd,,
Infrastructure and Networks,Highways,Chief Executive's Unit,Supplies & Services,"Equipment, Furniture and Materials",Materials & Consumables.,,11/07/2014,10382570,808470,50.60,R,Prismo Road Markings Ltd,,
Infrastructure and Networks,Highways,Chief Executive's Unit,Supplies & Services,"Equipment, Furniture and Materials",Materials & Consumables.,,29/07/2014,10384863,808592,451.20,R,Hanson Quarry Products Europe Ltd,,
Infrastructure and Networks,Highways,Chief Executive's Unit,Supplies & Services,"Equipment, Furniture and Materials",Materials & Consumables.,,15/07/2014,10382613,808529,470.00,R,KPR Engineering (M&E) Ltd,,
Infrastructure and Networks,Highways,Chief Executive's Unit,Supplies & Services,"Equipment, Furniture and Materials",Materials & Consumables.,,18/07/2014,10383780,808396,"1,356.25",R,Tom Prichard Contracting Ltd,,
Infrastructure and Networks,Highways,Chief Executive's Unit,Supplies & Services,"Equipment, Furniture and Materials",Materials & Consumables.,,18/07/2014,10383776,808396,"1,470.00",R,Tom Prichard Contracting Ltd,,
Infrastructure and Networks,Highways,Chief Executive's Unit,Supplies & Services,"Equipment, Furniture and Materials",Materials & Consumables.,,18/07/2014,10383765,808396,122.50,R,Tom Prichard Contracting Ltd,,
Infrastructure and Networks,Highways,Chief Executive's Unit,Supplies & Services,"Equipment, Furniture and Materials",Materials & Consumables.,,18/07/2014,10383765,808396,525.00,R,Tom Prichard Contracting Ltd,,
Infrastructure and Networks,Highways,Chief Executive's Unit,Supplies & Services,"Equipment, Furniture and Materials",Materials & Consumables.,,22/07/2014,10384767,808562,76.20,R,Hanson Aggregates - Central,,
Infrastructure and Networks,Highways,Chief Executive's Unit,Supplies & Services,"Equipment, Furniture and Materials",Materials & Consumables.,,22/07/2014,10384769,808579,76.20,R,Hanson Quarry Products Europe Ltd,,
Infrastructure and Networks,Highways,Chief Executive's Unit,Supplies & Services,"Equipment, Furniture and Materials",Materials & Consumables.,,18/07/2014,10383780,808396,70.00,R,Tom Prichard Contracting Ltd,,
Infrastructure and Networks,Highways,Chief Executive's Unit,Supplies & Services,"Equipment, Furniture and Materials",Materials & Consumables.,,08/07/2014,10381925,0,58.00,R,Griffiths Signs & Equipment Co.,,
Infrastructure and Networks,Highways,Chief Executive's Unit,Supplies & Services,"Equipment, Furniture and Materials",Materials & Consumables.,,18/07/2014,10383831,0,600.00,R,Gwent Auto Sounds And Security,,
Adult Services,Day Centres,Social Care and Health,Supplies & Services,"Equipment, Furniture and Materials",Materials & Consumables.,,15/07/2014,10382971,0,81.35,R,REDACTED DATA,,
Public Life and Culture,Leisure Services,Enterprise,Supplies & Services,"Equipment, Furniture and Materials",Provisions.,,11/07/2014,10382501,10056424,11.98,R,Chapple & Jenkins Wholesale,,
Public Life and Culture,Leisure Services,Enterprise,Supplies & Services,"Equipment, Furniture and Materials",Provisions.,,22/07/2014,10384895,10057901,549.04,R,Chapple & Jenkins Wholesale,,
Public Life and Culture,Leisure Services,Enterprise,Supplies & Services,"Equipment, Furniture and Materials",Provisions.,,01/07/2014,10380864,10057897,11.98,R,Chapple & Jenkins Wholesale,,
Public Life and Culture,Leisure Services,Enterprise,Supplies & Services,"Equipment, Furniture and Materials",Provisions.,,01/07/2014,10380825,0,-17.38,R,Chapple & Jenkins Wholesale,,
Public Life and Culture,Leisure Services,Enterprise,Supplies & Services,"Equipment, Furniture and Materials",Provisions.,,22/07/2014,10384061,0,-44.58,R,Chapple & Jenkins Wholesale,,
Public Life and Culture,Leisure Services,Enterprise,Supplies & Services,"Equipment, Furniture and Materials",Provisions.,,04/07/2014,10380874,10057923,-11.98,R,Chapple & Jenkins Wholesale,,
Public Life and Culture,Leisure Services,Enterprise,Supplies & Services,"Equipment, Furniture and Materials",Provisions.,,04/07/2014,10380874,10057923,11.98,R,Chapple & Jenkins Wholesale,,
Public Life and Culture,Cultural Services,Enterprise,Supplies & Services,"Equipment, Furniture and Materials",Provisions.,,08/07/2014,10381449,0,10.66,R,Castell Howell Foods Ltd,,
Public Life and Culture,Cultural Services,Enterprise,Supplies & Services,"Equipment, Furniture and Materials",Provisions.,,18/07/2014,10384036,0,262.18,R,Castell Howell Foods Ltd,,
Public Life and Culture,Cultural Services,Enterprise,Supplies & Services,"Equipment, Furniture and Materials",Provisions.,,18/07/2014,10384038,0,163.03,R,Douglas Willis Ltd,,
Public Life and Culture,Cultural Services,Enterprise,Supplies & Services,"Equipment, Furniture and Materials",Provisions.,,08/07/2014,10381442,0,127.79,R,Castell Howell Foods Ltd,,
Public Life and Culture,Cultural Services,Enterprise,Supplies & Services,"Equipment, Furniture and Materials",Provisions.,,08/07/2014,10381442,0,458.69,R,Castell Howell Foods Ltd,,
Public Life and Culture,Cultural Services,Enterprise,Supplies & Services,"Equipment, Furniture and Materials",Provisions.,,08/07/2014,10381461,0,-8.60,R,Total Produce (Hereford),,
Children Services,Children Services Teams,Social Care and Health,Supplies & Services,"Equipment, Furniture and Materials",Provisions.,,04/07/2014,10381149,10057280,16.98,R,Princes Gate Cool Water Ltd,,
Adult Services,Direct Care Residential,Social Care and Health,Supplies & Services,"Equipment, Furniture and Materials",Provisions.,,11/07/2014,10382502,10055700,30.63,R,REDACTED PERSONAL DATA,,
Adult Services,Direct Care Residential,Social Care and Health,Supplies & Services,"Equipment, Furniture and Materials",Provisions.,,04/07/2014,10381578,10055700,3.97,R,REDACTED PERSONAL DATA,,
Adult Services,Direct Care Residential,Social Care and Health,Supplies & Services,"Equipment, Furniture and Materials",Provisions.,,04/07/2014,10381146,10055700,59.65,R,REDACTED PERSONAL DATA,,
Adult Services,Direct Care Residential,Social Care and Health,Supplies & Services,"Equipment, Furniture and Materials",Provisions.,,08/07/2014,10381603,10055713,-7.67,R,Michael I Holdsworth Limited,,
Adult Services,Direct Care Residential,Social Care and Health,Supplies & Services,"Equipment, Furniture and Materials",Provisions.,,22/07/2014,10383710,0,"1,552.35",R,REDACTED DATA,,
Adult Services,Direct Care,Social Care and Health,Supplies & Services,"Equipment, Furniture and Materials",Provisions.,,08/07/2014,10382389,10055886,799.46,R,Apetito Ltd,,
Adult Services,Direct Care,Social Care and Health,Supplies & Services,"Equipment, Furniture and Materials",Provisions.,,29/07/2014,10386412,10055911,95.89,R,3663,,
Adult Services,Direct Care Residential,Social Care and Health,Supplies & Services,"Equipment, Furniture and Materials",Provisions.,,01/07/2014,10380893,10055854,-50.62,R,Michael I Holdsworth Limited,,
Adult Services,Direct Care Residential,Social Care and Health,Supplies & Services,"Equipment, Furniture and Materials",Provisions.,,01/07/2014,10380893,10055854,50.62,R,Michael I Holdsworth Limited,,
Adult Services,Direct Care Residential,Social Care and Health,Supplies & Services,"Equipment, Furniture and Materials",Provisions.,,04/07/2014,10381893,10055864,33.70,R,REDACTED PERSONAL DATA,,
Infrastructure and Networks,Property Services & Facilities Management,Chief Executive's Unit,Supplies & Services,"Equipment, Furniture and Materials",Cleaning Materials.,,29/07/2014,10386361,0,27.33,R,Newhall Janitorial Ltd,,
Infrastructure and Networks,Property Services & Facilities Management,Chief Executive's Unit,Supplies & Services,"Equipment, Furniture and Materials",Cleaning Materials.,,29/07/2014,10386364,0,66.36,R,Newhall Janitorial Ltd,,
Infrastructure and Networks,Home to School Transport Dept,Chief Executive's Unit,Supplies & Services,"Equipment, Furniture and Materials",Cleaning Materials.,,11/07/2014,10382511,10058127,40.08,R,Fast Rads,,
Public Life and Culture,Leisure Services,Enterprise,Supplies & Services,Catering,Cafe,,01/07/2014,10380863,10057898,-26.10,R,Chapple & Jenkins Wholesale,,
Public Life and Culture,Leisure Services,Enterprise,Supplies & Services,Catering,Cafe,,01/07/2014,10380863,10057898,26.10,R,Chapple & Jenkins Wholesale,,
Public Life and Culture,Leisure Services,Enterprise,Supplies & Services,Catering,Cafe,,22/07/2014,10384847,10058060,77.47,R,Charles Saunders LTD.,,
Public Life and Culture,Leisure Services,Enterprise,Supplies & Services,Catering,Cafe,,18/07/2014,10384139,10057904,136.27,R,Michael I Holdsworth Limited,,
Public Life and Culture,Leisure Services,Enterprise,Supplies & Services,Catering,Cafe,,04/07/2014,10380869,10057945,-2.86,R,Michael I Holdsworth Limited,,
Public Life and Culture,Leisure Services,Enterprise,Supplies & Services,Catering,Cafe,,04/07/2014,10380869,10057945,129.94,R,Michael I Holdsworth Limited,,
Public Life and Culture,Leisure Services,Enterprise,Supplies & Services,Catering,Cafe,,25/07/2014,10385250,10058306,17.76,R,B Sidoli and Sons Ltd,,
Public Life and Culture,Leisure Services,Enterprise,Supplies & Services,Catering,Cafe,,22/07/2014,10384879,10058179,33.62,R,Chapple & Jenkins Wholesale,,
Public Life and Culture,Leisure Services,Enterprise,Supplies & Services,"Equipment, Furniture and Materials",Chemicals.,,15/07/2014,10381975,10057766,394.87,R,Brenntag UK Ltd,,
Infrastructure and Networks,Transport Department,Chief Executive's Unit,Supplies & Services,"Equipment, Furniture and Materials",Small Plant & Tools.,,18/07/2014,10383422,0,59.90,R,Fast Fluid Power Ltd,,
Schools Total,SCHGRP3 � School Group 3 � Pupil Capacity 315-500,MCC Schools,Supplies & Services,"Equipment, Furniture and Materials",Small Plant & Tools.,,04/07/2014,10381062,0,102.40,R,Trade UK,,
Infrastructure and Networks,Highways,Chief Executive's Unit,Supplies & Services,"Equipment, Furniture and Materials",Small Plant & Tools.,,15/07/2014,10382621,808536,11.50,R,South Wales Locksmiths,,
Public Life and Culture,Cultural Services,Enterprise,Supplies & Services,"Equipment, Furniture and Materials",Domestic Supplies.,,11/07/2014,10381514,0,163.33,R,Breasley Pillow Ltd,,
Schools Total,School Group 7 � Pupil Capacity 501-1800,MCC Schools,Supplies & Services,Expenses,Exam Fees (Schools),,08/07/2014,10382198,0,-153.00,R,Pearson Education LTD,,
Schools Total,School Group 7 � Pupil Capacity 501-1800,MCC Schools,Supplies & Services,Expenses,Exam Fees (Schools),,08/07/2014,10382209,0,130.00,R,WJEC Bookshop,,
Schools Total,School Group 7 � Pupil Capacity 501-1800,MCC Schools,Supplies & Services,Expenses,Exam Fees (Schools),,08/07/2014,10382210,0,61.20,R,Pearson Education LTD,,
Schools Total,School Group 7 � Pupil Capacity 501-1800,MCC Schools,Supplies & Services,Expenses,Exam Fees (Schools),,08/07/2014,10382398,0,508.75,R,GL Education Group,,
Schools Total,School Group 7 � Pupil Capacity 501-1800,MCC Schools,Supplies & Services,Expenses,Exam Fees (Schools),,08/07/2014,10382396,0,500.50,R,WJEC Bookshop,,
Schools Total,School Group 7 � Pupil Capacity 501-1800,MCC Schools,Supplies & Services,Expenses,Exam Fees (Schools),,18/07/2014,10383738,0,15.00,R,AQA,,
Schools Total,School Group 7 � Pupil Capacity 501-1800,MCC Schools,Supplies & Services,Expenses,Exam Fees (Schools),,01/07/2014,10381072,0,23.00,R,AQA,,
Public Life and Culture,Cultural Services,Enterprise,Supplies & Services,"Equipment, Furniture and Materials",General Goods For Resale.,,08/07/2014,10381255,0,95.10,R,Cheatwell Games,,
Public Life and Culture,Leisure Services,Enterprise,Supplies & Services,"Equipment, Furniture and Materials",General Goods For Resale.,,04/07/2014,10381224,0,"12,368.50",R,Osprey Products,,
Public Life and Culture,Tourism,Enterprise,Supplies & Services,"Equipment, Furniture and Materials",General Goods For Resale.,,08/07/2014,10381178,0,53.13,R,Brookes Dairy,,
Public Life and Culture,Cultural Services,Enterprise,Supplies & Services,"Equipment, Furniture and Materials",Souvenirs For Resale.,,25/07/2014,10385373,10058262,282.70,R,Quinnell Candle Company,,
Schools Total,School Group 2 � Pupil Capacity 144-314,MCC Schools,Supplies & Services,"Equipment, Furniture and Materials",Furniture Purchases / Replacement,,08/07/2014,10382382,80028582,300.19,R,West Mercia Suppliers,,
Adult Services,Day Centres,Social Care and Health,Supplies & Services,"Equipment, Furniture and Materials",Furniture Purchases / Replacement,,08/07/2014,10380104,10057505,70.80,R,Argos Business Solutions,,
Standards,Early Years,Children & Young People,Supplies & Services,"Printing, Stationery and General Office Expenses",Printing,,08/07/2014,10381155,10057623,436.00,R,MWL Print Group Ltd,,
Finance,Revenues Department,Chief Executive's Unit,Supplies & Services,"Printing, Stationery and General Office Expenses",Printing,,11/07/2014,10382119,10057986,128.00,R,MWL Print Group Ltd,,
Schools Total,SCHGRP3 � School Group 3 � Pupil Capacity 315-500,MCC Schools,Supplies & Services,"Printing, Stationery and General Office Expenses",Photocopying.,,04/07/2014,10381261,0,211.20,R,Xerox Uk Ltd,,
Schools Total,SCHGRP3 � School Group 3 � Pupil Capacity 315-500,MCC Schools,Supplies & Services,"Printing, Stationery and General Office Expenses",Photocopying.,,04/07/2014,10381262,0,27.13,R,Xerox Uk Ltd,,
Schools Total,School Group 2 � Pupil Capacity 144-314,MCC Schools,Supplies & Services,"Printing, Stationery and General Office Expenses",Photocopying.,,08/07/2014,10381937,80029069,85.90,R,Set (Office Supplies) Limited,,
Infrastructure and Networks,Property Services & Facilities Management,Chief Executive's Unit,Supplies & Services,"Printing, Stationery and General Office Expenses",Photocopying.,,25/07/2014,10385700,0,726.58,R,Konica Minolta Bus. Solutions (UK) Ltd,,
Schools Total,School Group 7 � Pupil Capacity 501-1800,MCC Schools,Supplies & Services,"Printing, Stationery and General Office Expenses",Stationery,,08/07/2014,10381953,80029128,72.56,R,Viking Direct Ltd,,
Schools Total,School Group 7 � Pupil Capacity 501-1800,MCC Schools,Supplies & Services,"Printing, Stationery and General Office Expenses",Stationery,,11/07/2014,10382510,80029206,13.60,R,Educational Planning Books,,
Schools Total,School Group 7 � Pupil Capacity 501-1800,MCC Schools,Supplies & Services,"Printing, Stationery and General Office Expenses",Stationery,,18/07/2014,10384161,80028834,51.21,R,ESPO,,
Schools Total,School Group 7 � Pupil Capacity 501-1800,MCC Schools,Supplies & Services,"Printing, Stationery and General Office Expenses",Stationery,,18/07/2014,10384163,80028645,150.00,R,ESPO,,
Schools Total,School Group 7 � Pupil Capacity 501-1800,MCC Schools,Supplies & Services,"Printing, Stationery and General Office Expenses",Stationery,,08/07/2014,10381942,80028642,42.00,R,Springfield Business Papers,,
Schools Total,School Group 7 � Pupil Capacity 501-1800,MCC Schools,Supplies & Services,"Printing, Stationery and General Office Expenses",Stationery,,08/07/2014,10381626,80029089,45.05,R,Educational Planning Books,,
Schools Total,School Group 7 � Pupil Capacity 501-1800,MCC Schools,Supplies & Services,"Printing, Stationery and General Office Expenses",Stationery,,25/07/2014,10379253,80028285,5.98,R,Viking Direct Ltd,,
Schools Total,School Group 7 � Pupil Capacity 501-1800,MCC Schools,Supplies & Services,"Printing, Stationery and General Office Expenses",Stationery,,11/07/2014,10382843,0,90.00,R,REDACTED PERSONAL DATA,,
Schools Total,School Group 7 � Pupil Capacity 501-1800,MCC Schools,Supplies & Services,"Printing, Stationery and General Office Expenses",Stationery,,11/07/2014,10382970,0,65.94,R,REDACTED DATA,,
Schools Total,School Group 7 � Pupil Capacity 501-1800,MCC Schools,Supplies & Services,"Printing, Stationery and General Office Expenses",Stationery,,11/07/2014,10382970,0,540.00,R,REDACTED DATA,,
Schools Total,School Group 7 � Pupil Capacity 501-1800,MCC Schools,Supplies & Services,"Printing, Stationery and General Office Expenses",Stationery,,11/07/2014,10382764,80028751,17.90,R,ESPO,,
Schools Total,School Group 7 � Pupil Capacity 501-1800,MCC Schools,Supplies & Services,"Printing, Stationery and General Office Expenses",Stationery,,11/07/2014,10366101,80027376,2.50,R,ESPO,,
Schools Total,School Group 7 � Pupil Capacity 501-1800,MCC Schools,Supplies & Services,"Printing, Stationery and General Office Expenses",Stationery,,18/07/2014,10383668,0,287.00,R,REDACTED DATA,,
Schools Total,School Group 7 � Pupil Capacity 501-1800,MCC Schools,Supplies & Services,"Printing, Stationery and General Office Expenses",Stationery,,01/07/2014,10381069,0,"1,315.50",R,Business Build,,
Schools Total,School Group 7 � Pupil Capacity 501-1800,MCC Schools,Supplies & Services,"Printing, Stationery and General Office Expenses",Stationery,,01/07/2014,10381078,0,13.95,R,Harper Collins Publishers,,
Schools Total,School Group 7 � Pupil Capacity 501-1800,MCC Schools,Supplies & Services,"Printing, Stationery and General Office Expenses",Stationery,,18/07/2014,10384124,0,49.13,R,Uk Laser Suppliers,,
Schools Total,School Group 2 � Pupil Capacity 144-314,MCC Schools,Supplies & Services,"Printing, Stationery and General Office Expenses",Stationery,,11/07/2014,10382630,80027822,138.80,R,Browns Office Supplies Ltd,,
Schools Total,School Group 2 � Pupil Capacity 144-314,MCC Schools,Supplies & Services,"Printing, Stationery and General Office Expenses",Stationery,,25/07/2014,10385838,80029164,123.68,R,ESPO,,
Schools Total,SCHGRP3 � School Group 3 � Pupil Capacity 315-500,MCC Schools,Supplies & Services,"Printing, Stationery and General Office Expenses",Stationery,,15/07/2014,10383241,80029242,4.50,R,West Mercia Suppliers,,
Schools Total,SCHGRP3 � School Group 3 � Pupil Capacity 315-500,MCC Schools,Supplies & Services,"Printing, Stationery and General Office Expenses",Stationery,,25/07/2014,10385454,80029296,5.88,R,West Mercia Suppliers,,
Schools Total,School Group 2 � Pupil Capacity 144-314,MCC Schools,Supplies & Services,"Printing, Stationery and General Office Expenses",Stationery,,18/07/2014,10383260,80029283,18.70,R,Out Of The Ark Music,,
Schools Total,School Group 2 � Pupil Capacity 144-314,MCC Schools,Supplies & Services,"Printing, Stationery and General Office Expenses",Stationery,,18/07/2014,10384120,80028676,43.65,R,The Consortium,,
Schools Total,School Group 2 � Pupil Capacity 144-314,MCC Schools,Supplies & Services,"Printing, Stationery and General Office Expenses",Stationery,,18/07/2014,10384122,80027350,25.88,R,The Consortium,,
Schools Total,School Group 2 � Pupil Capacity 144-314,MCC Schools,Supplies & Services,"Printing, Stationery and General Office Expenses",Stationery,,25/07/2014,10385499,80029204,241.89,R,ESPO,,
Infrastructure and Networks,Property Services & Facilities Management,Chief Executive's Unit,Supplies & Services,"Printing, Stationery and General Office Expenses",Stationery,,25/07/2014,10385696,0,185.90,R,NCB Marking Equipment,,
Infrastructure and Networks,Property Services & Facilities Management,Chief Executive's Unit,Supplies & Services,"Printing, Stationery and General Office Expenses",Stationery,,25/07/2014,10385383,10058322,123.00,R,Banner Business Supplies Ltd,,
Infrastructure and Networks,Property Services & Facilities Management,Chief Executive's Unit,Supplies & Services,"Printing, Stationery and General Office Expenses",Stationery,,01/07/2014,10380937,10057806,70.90,R,Banner Business Supplies Ltd,,
Infrastructure and Networks,Property Services & Facilities Management,Chief Executive's Unit,Supplies & Services,"Printing, Stationery and General Office Expenses",Stationery,,25/07/2014,10385330,0,26.31,R,Banner Business Supplies Ltd,,
Infrastructure and Networks,Property Services & Facilities Management,Chief Executive's Unit,Supplies & Services,"Printing, Stationery and General Office Expenses",Stationery,,08/07/2014,10381612,10057944,607.63,R,Banner Business Supplies Ltd,,
Infrastructure and Networks,Property Services & Facilities Management,Chief Executive's Unit,Supplies & Services,"Printing, Stationery and General Office Expenses",Stationery,,08/07/2014,10381613,10057940,325.20,R,Banner Business Supplies Ltd,,
Infrastructure and Networks,Property Services & Facilities Management,Chief Executive's Unit,Supplies & Services,"Printing, Stationery and General Office Expenses",Stationery,,08/07/2014,10381615,10057938,134.70,R,Banner Business Supplies Ltd,,
Infrastructure and Networks,Property Services & Facilities Management,Chief Executive's Unit,Supplies & Services,"Printing, Stationery and General Office Expenses",Stationery,,08/07/2014,10381615,10057938,1.92,R,Banner Business Supplies Ltd,,
Public Life and Culture,Leisure Services,Enterprise,Supplies & Services,"Printing, Stationery and General Office Expenses",Stationery,,15/07/2014,10382760,10057286,30.58,R,Nisbets,,
Schools Total,School Group 7 � Pupil Capacity 501-1800,MCC Schools,Supplies & Services,"Printing, Stationery and General Office Expenses",Publications,,18/07/2014,10383743,0,2.55,R,REDACTED DATA,,
Schools Total,School Group 2 � Pupil Capacity 144-314,MCC Schools,Supplies & Services,"Printing, Stationery and General Office Expenses",Publications,,18/07/2014,10384136,80029236,26.56,R,Primary Teaching Services,,
Schools Total,School Group 2 � Pupil Capacity 144-314,MCC Schools,Supplies & Services,"Printing, Stationery and General Office Expenses",Publications,,25/07/2014,10385256,80029516,374.58,R,Oxford University Press,,
Commercial & People Development,Business Growth & Enterprise,Enterprise,Supplies & Services,"Printing, Stationery and General Office Expenses",Publications,,04/07/2014,10380996,10057156,"3,195.00",R,Height Studio Limited,,
Schools Total,School Group 7 � Pupil Capacity 501-1800,MCC Schools,Supplies & Services,"Printing, Stationery and General Office Expenses",Book Purchases,,01/07/2014,10381054,80028153,17.99,R,Macmillan Distribution Ltd,,
Schools Total,School Group 7 � Pupil Capacity 501-1800,MCC Schools,Supplies & Services,"Printing, Stationery and General Office Expenses",Book Purchases,,04/07/2014,10381147,80028772,27.00,R,Pandora Books,,
Schools Effectiveness Grant & Welsh In Education Grant,Schools Better Schools Fund,MCC Schools,Supplies & Services,"Printing, Stationery and General Office Expenses",Book Purchases,,04/07/2014,10381754,0,165.90,R,Peters Library Service Ltd,,
Schools Effectiveness Grant & Welsh In Education Grant,Schools Better Schools Fund,MCC Schools,Supplies & Services,"Printing, Stationery and General Office Expenses",Book Purchases,,01/07/2014,10380082,0,387.83,R,Oxford University Press,,
Community Led Delivery,Community Hubs,Enterprise,Supplies & Services,"Printing, Stationery and General Office Expenses",Book Purchases,,11/07/2014,10382811,0,233.98,R,Trans UK Ltd,,
Community Led Delivery,Community Hubs,Enterprise,Supplies & Services,"Printing, Stationery and General Office Expenses",Book Purchases,,15/07/2014,10382826,0,-9.62,R,Askews & Holts Library Services Ltd,,
Community Led Delivery,Community Hubs,Enterprise,Supplies & Services,"Printing, Stationery and General Office Expenses",Book Purchases,,18/07/2014,10383902,0,162.30,R,Askews & Holts Library Services Ltd,,
Community Led Delivery,Community Hubs,Enterprise,Supplies & Services,"Printing, Stationery and General Office Expenses",Book Purchases,,18/07/2014,10383904,0,495.76,R,Askews & Holts Library Services Ltd,,
Community Led Delivery,Community Hubs,Enterprise,Supplies & Services,"Printing, Stationery and General Office Expenses",Book Purchases,,18/07/2014,10383910,0,43.45,R,Askews & Holts Library Services Ltd,,
Community Led Delivery,Community Hubs,Enterprise,Supplies & Services,"Printing, Stationery and General Office Expenses",Book Purchases,,18/07/2014,10383893,0,114.38,R,Trans UK Ltd,,
Community Led Delivery,Community Hubs,Enterprise,Supplies & Services,"Printing, Stationery and General Office Expenses",Book Purchases,,29/07/2014,10385984,10055904,184.45,R,Oakhill Publishing Ltd,,
Community Led Delivery,Community Hubs,Enterprise,Supplies & Services,"Printing, Stationery and General Office Expenses",Book Purchases,,04/07/2014,10381645,10055905,341.28,R,Ulverscroft Large Print Books,,
Community Led Delivery,Community Hubs,Enterprise,Supplies & Services,"Printing, Stationery and General Office Expenses",Book Purchases,,29/07/2014,10386120,0,206.91,R,Askews & Holts Library Services Ltd,,
Community Led Delivery,Community Hubs,Enterprise,Supplies & Services,"Printing, Stationery and General Office Expenses",Book Purchases,,15/07/2014,10382816,0,7.66,R,Askews & Holts Library Services Ltd,,
Community Led Delivery,Asset Management,Enterprise,Supplies & Services,Services,Professional And Specialist Fees,,04/07/2014,10381750,0,900.00,R,REDACTED PERSONAL DATA,,
Community Led Delivery,General Fund Housing,Enterprise,Supplies & Services,Services,Professional And Specialist Fees,,08/07/2014,10381445,0,2.50,R,Swift Credit Services Ltd,,
Public Life and Culture,Sports Developmemt,Enterprise,Supplies & Services,Services,Professional And Specialist Fees,,04/07/2014,10379210,0,50.00,R,Dance Blast,,
Public Life and Culture,Cultural Services,Enterprise,Supplies & Services,Services,Professional And Specialist Fees,,22/07/2014,10384374,0,395.00,R,Sanderson Maughan Ltd,,
Democracy & Regulatory Services,Public Protection,Chief Executive's Unit,Supplies & Services,Services,Professional And Specialist Fees,,01/07/2014,10380888,10057171,614.38,R,ALS Environmental Limited,,
Commercial & People Development,Business Growth & Enterprise,Enterprise,Supplies & Services,Services,Professional And Specialist Fees,,11/07/2014,10381968,10055648,482.40,R,The Monmouthshire Trading Company,,
"Planning, Place and Enterprise",Regeneration Department,Regeneration & Culture,Supplies & Services,Services,Professional And Specialist Fees,,25/07/2014,10385424,10056161,"4,300.00",R,GWT Countryside,,
Democracy & Regulatory Services,Public Protection,Chief Executive's Unit,Supplies & Services,Services,Professional And Specialist Fees,,15/07/2014,10383038,0,"1,140.00",R,Fully Recouped from Third Party,,
Infrastructure and Networks,Transport Department,Chief Executive's Unit,Supplies & Services,Services,Professional And Specialist Fees,,29/07/2014,10386391,10057382,"1,522.00",R,Air Quality Consultants Ltd,,
Children Services,Children Services Teams,Social Care and Health,Supplies & Services,Services,Professional And Specialist Fees,,04/07/2014,10381313,0,243.00,R,Dr Stephen Chapman Limited,,
Children Services,Children Services Teams,Social Care and Health,Supplies & Services,Services,Professional And Specialist Fees,,18/07/2014,10383622,0,426.39,R,The Maltings Ltd,,
Policy & Partnership,Policy And Partnerships,Chief Executive's Unit,Supplies & Services,Services,Professional And Specialist Fees,,15/07/2014,10382339,0,529.80,R,Police and Crime Commissioner for Gwent,,
Public Life and Culture,Tourism,Enterprise,Supplies & Services,Services,Sub-Contractors Fees,,11/07/2014,10383117,10055935,98.51,R,Wastesavers Limited,,
Finance,Revenues Department,Chief Executive's Unit,Supplies & Services,Services,Financial products and services general fees and charges,,15/07/2014,10382243,10047045,"1,422.74",R,B & S Bailiff Services,,
Finance,Revenues Department,Chief Executive's Unit,Supplies & Services,Services,Financial products and services general fees and charges,,18/07/2014,10383325,0,247.84,R,Swift Credit Services Ltd,,
Finance,Revenues Department,Chief Executive's Unit,Supplies & Services,Services,Financial products and services general fees and charges,,29/07/2014,10385226,10047045,681.36,R,B & S Bailiff Services,,
Finance,Revenues Department,Chief Executive's Unit,Supplies & Services,Services,Financial products and services general fees and charges,,29/07/2014,10385226,10047045,77.37,R,B & S Bailiff Services,,
Finance,Revenues Department,Chief Executive's Unit,Supplies & Services,Services,Financial products and services general fees and charges,,04/07/2014,10381325,10047041,36.29,R,Swift Credit Services Ltd,,
Finance,Revenues Department,Chief Executive's Unit,Supplies & Services,Services,Financial products and services general fees and charges,,04/07/2014,10381326,10047045,"-1,247.56",R,B & S Bailiff Services,,
Finance,Revenues Department,Chief Executive's Unit,Supplies & Services,Services,Financial products and services general fees and charges,,08/07/2014,10381324,10047045,91.16,R,B & S Bailiff Services,,
Democracy & Regulatory Services,Legal & Land Charges,Chief Executive's Unit,Supplies & Services,Services,Financial products and services general fees and charges,,08/07/2014,10381782,0,"2,822.02",R,Local Government Association,,
Children Services,Children Services Other,Social Care and Health,Supplies & Services,Services,Legal Costs,,15/07/2014,10383173,0,743.00,R,REDACTED PERSONAL DATA,,
Adult Services,Day Centres,Social Care and Health,Supplies & Services,Communications and Computing,Telephone,,15/07/2014,10382971,0,39.99,R,REDACTED DATA,,
Community Led Delivery,Community Hubs,Enterprise,Supplies & Services,Communications and Computing,Telephone,,29/07/2014,10386031,0,13.50,R,British Telecommunications Plc,,
Youth,Inclusions,Children & Young People,Supplies & Services,Communications and Computing,Telephone - Call Charges,,04/07/2014,10381470,0,13.50,R,British Telecommunications Plc,,
Infrastructure and Networks,Property Services & Facilities Management,Chief Executive's Unit,Supplies & Services,Communications and Computing,Mobile Telephones,,15/07/2014,10383276,0,5.00,R,Orange Payment Processing Centre,,
Infrastructure and Networks,Property Services & Facilities Management,Chief Executive's Unit,Supplies & Services,Communications and Computing,Mobile Telephones,,18/07/2014,10383823,10056298,89.00,R,Orange Payment Processing Centre,,
Infrastructure and Networks,Property Services & Facilities Management,Chief Executive's Unit,Supplies & Services,Communications and Computing,Mobile Telephones,,18/07/2014,10383827,10056298,89.00,R,Orange Payment Processing Centre,,
Public Life and Culture,Tourism,Enterprise,Supplies & Services,Communications and Computing,Mobile Telephone Call Charges,,04/07/2014,10381205,0,9.31,R,Telefonica O2 Uk Ltd,,
Schools Total,School Group 2 � Pupil Capacity 144-314,MCC Schools,Supplies & Services,Communications and Computing,Hardware Rental/ Maintenance.,,18/07/2014,10384025,0,150.00,R,Computerworld (Wales) Ltd,,
Schools Total,School Group 2 � Pupil Capacity 144-314,MCC Schools,Supplies & Services,Communications and Computing,Hardware Rental/ Maintenance.,,18/07/2014,10384017,0,182.00,R,Investec Asset Finance,,
Commercial & People Development,Technology & Organisational Design,Enterprise,Supplies & Services,Communications and Computing,Software Maintenance,,11/07/2014,10382324,0,"3,788.46",R,SRS Public,,
Commercial & People Development,Technology & Organisational Design,Enterprise,Supplies & Services,Communications and Computing,Software Maintenance,,11/07/2014,10382325,0,"7,448.82",R,SRS Public,,
Public Life and Culture,Leisure Services,Enterprise,Supplies & Services,Communications and Computing,Software Maintenance,,29/07/2014,10385317,0,75.00,R,A2z Computing,,
Schools Total,School Group 2 � Pupil Capacity 144-314,MCC Schools,Supplies & Services,Communications and Computing,IT Hardware,,18/07/2014,10383979,80029430,399.99,R,Virtual School Consultancy,,
Commissioning,Supporting People,Social Care and Health,Supplies & Services,Communications and Computing,IT Hardware,,08/07/2014,10381336,10057532,467.45,R,SRS Public,,
Schools Total,School Group 7 � Pupil Capacity 501-1800,MCC Schools,Supplies & Services,Communications and Computing,IT Software,,29/07/2014,10386062,0,295.00,R,Pinecone Associates Ltd,,
Schools Total,SCHGRP3 � School Group 3 � Pupil Capacity 315-500,MCC Schools,Supplies & Services,Communications and Computing,Computer Consumables,,18/07/2014,10384254,80029419,235.00,R,Browns Office Supplies Ltd,,
Community Led Delivery,Community Hubs,Enterprise,Supplies & Services,Communications and Computing,Computer Consumables,,11/07/2014,10382076,10057744,198.00,R,Product Expectations Limited,,
Commercial & People Development,Business Growth & Enterprise,Enterprise,Supplies & Services,"Equipment, Furniture and Materials",Recycling,,18/07/2014,10384353,10058315,"1,496.00",R,GFI Event Services Ltd,,
Schools Total,School Group 7 � Pupil Capacity 501-1800,MCC Schools,Supplies & Services,Communications and Computing,Postages,,18/07/2014,10383091,80028945,4.95,R,School Software Solutions Ltd,,
Schools Total,School Group 7 � Pupil Capacity 501-1800,MCC Schools,Supplies & Services,Communications and Computing,Postages,,29/07/2014,10386175,80029189,5.00,R,Illuminate Publishing,,
Schools Total,School Group 7 � Pupil Capacity 501-1800,MCC Schools,Supplies & Services,Communications and Computing,Postages,,01/07/2014,10381073,0,9.60,R,Purchase Power,,
Schools Total,Schools,MCC Schools,Supplies & Services,Communications and Computing,Postages,,01/07/2014,10379963,80028795,6.95,R,Eureka 1st Aid & Safety for Schools,,
Schools Total,SCHGRP3 � School Group 3 � Pupil Capacity 315-500,MCC Schools,Supplies & Services,Communications and Computing,Postages,,18/07/2014,10381025,80028857,3.50,R,Pearson Education LTD,,
Schools Total,School Group 2 � Pupil Capacity 144-314,MCC Schools,Supplies & Services,Communications and Computing,Postages,,18/07/2014,10383666,0,3.60,R,REDACTED DATA,,
Standards,Early Years,Children & Young People,Supplies & Services,Communications and Computing,Postages,,04/07/2014,10381630,10057853,5.95,R,TTS Group Ltd,,
Standards,Additional Learning Needs,Children & Young People,Supplies & Services,Communications and Computing,Postages,,11/07/2014,10382410,10057958,54.00,R,R82 UK Ltd,,
Standards,Additional Learning Needs,Children & Young People,Supplies & Services,Communications and Computing,Postages,,15/07/2014,10382375,10057956,9.70,R,Mackworth Health Care,,
Community Led Delivery,Community Education,Enterprise,Supplies & Services,Communications and Computing,Postages,,31/07/2014,10386800,0,-50.05,R,REDACTED DATA,,
Public Life and Culture,Leisure Services,Enterprise,Supplies & Services,Communications and Computing,Postages,,08/07/2014,10381962,10057942,12.50,R,Dale Sauna Ltd,,
Public Life and Culture,Tourism,Enterprise,Supplies & Services,Communications and Computing,Postages,,08/07/2014,10381177,0,50.00,R,Pitney Bowes Postage By Phone,,
Public Life and Culture,Tourism,Enterprise,Supplies & Services,Communications and Computing,Postages,,08/07/2014,10381177,0,8.00,R,Pitney Bowes Postage By Phone,,
Adult Services,Day Centres,Social Care and Health,Supplies & Services,Communications and Computing,Postages,,08/07/2014,10380104,10057505,3.29,R,Argos Business Solutions,,
Public Life and Culture,Leisure Services,Enterprise,Supplies & Services,"Equipment, Furniture and Materials",Marketing General,,25/07/2014,10384963,10058201,190.00,R,Monnow Voice Ltd,,
Public Life and Culture,Leisure Services,Enterprise,Supplies & Services,"Equipment, Furniture and Materials",Marketing General,,04/07/2014,10381932,10057751,"2,090.45",R,RHL Activities,,
Public Life and Culture,Leisure Services,Enterprise,Supplies & Services,"Equipment, Furniture and Materials",Marketing General,,22/07/2014,10384276,0,"6,629.38",R,M J Events Support,,
Infrastructure and Networks,Highways,Chief Executive's Unit,Supplies & Services,"Equipment, Furniture and Materials",Display Equipment,,22/07/2014,10384575,808596,230.00,R,Griffiths Signs & Equipment Co.,,
Schools Total,School Group 7 � Pupil Capacity 501-1800,MCC Schools,Supplies & Services,"Equipment, Furniture and Materials",Advertising,,22/07/2014,10384976,80029429,215.00,R,Abergavenny Chronicle Co. Ltd,,
Schools Total,School Group 7 � Pupil Capacity 501-1800,MCC Schools,Supplies & Services,"Equipment, Furniture and Materials",Advertising,,18/07/2014,10384137,0,"2,377.00",R,The Homework Diary Co Ltd,,
Schools Total,School Group 7 � Pupil Capacity 501-1800,MCC Schools,Supplies & Services,"Equipment, Furniture and Materials",Advertising,,18/07/2014,10384134,0,90.00,R,MWL Print Group Ltd,,
Community Led Delivery,Asset Management,Enterprise,Supplies & Services,"Equipment, Furniture and Materials",Advertising,,22/07/2014,10382973,0,325.00,R,Newsquest,,
Public Life and Culture,Tourism,Enterprise,Supplies & Services,"Equipment, Furniture and Materials",Advertising,,11/07/2014,10382251,10058020,140.00,R,Monmouthshire Beacon Co Ltd,,
Schools Total,SCHGRP3 � School Group 3 � Pupil Capacity 315-500,MCC Schools,Supplies & Services,Grants and Subscriptions,Subscriptions,,22/07/2014,10384948,80029359,998.34,R,Schoop Limited,,
Infrastructure and Networks,"Registrations B, D and M",Chief Executive's Unit,Supplies & Services,Grants and Subscriptions,Subscriptions,,04/07/2014,10381382,10057959,200.00,R,Caerphilly County Borough Council,,
Policy & Partnership,Policy And Partnerships,Chief Executive's Unit,Supplies & Services,Grants and Subscriptions,Grants Payable,,08/07/2014,10381886,0,"10,000.00",R,Home Start,,
Policy & Partnership,Policy And Partnerships,Chief Executive's Unit,Supplies & Services,Grants and Subscriptions,Grants Payable,,15/07/2014,10382337,0,"3,750.00",R,Crossroads SE Wales,,
Community Led Delivery,Asset Management,Enterprise,Supplies & Services,"Clothes, Uniform and Laundry",Clothing And Uniforms,,29/07/2014,10385831,0,305.60,R,PSM Sportswear Ltd,,
Adult Services,Direct Care Residential,Social Care and Health,Supplies & Services,"Clothes, Uniform and Laundry",Clothing And Uniforms,,22/07/2014,10383710,0,166.58,R,REDACTED DATA,,
Schools Total,School Group 2 � Pupil Capacity 144-314,MCC Schools,Supplies & Services,Services,Training Charges,,11/07/2014,10382244,80028239,130.00,R,Attribute Sports Development Ltd,,
Infrastructure and Networks,Property Services & Facilities Management,Chief Executive's Unit,Supplies & Services,Services,Training Charges,,14/07/2014,10383595,0,"-1,200.00",R,Santia Training Services Ltd,,
Infrastructure and Networks,Waste and Street Services,Chief Executive's Unit,Supplies & Services,Services,Training Charges,All this expenditure is recovered from the client in full (plus the centres costs) to cover charges for the provision of training and assessment.,18/07/2014,10382499,0,100.00,R,Wales and South West Training,,
Infrastructure and Networks,Waste and Street Services,Chief Executive's Unit,Supplies & Services,Services,Training Charges,All this expenditure is recovered from the client in full (plus the centres costs) to cover charges for the provision of training and assessment.,25/07/2014,10385263,10058357,23.81,R,Lantra,,
Infrastructure and Networks,Waste and Street Services,Chief Executive's Unit,Supplies & Services,Services,Training Charges,All this expenditure is recovered from the client in full (plus the centres costs) to cover charges for the provision of training and assessment.,25/07/2014,10384175,10053348,47.00,R,Lantra,,
Commercial & People Development,People Services,Enterprise,Supplies & Services,Services,Training Charges,,15/07/2014,10382759,10056414,396.00,R,Baaf Registered Charity,,
Commercial & People Development,People Services,Enterprise,Supplies & Services,Services,Training Charges,,25/07/2014,10385229,10056948,332.00,R,BAAF Cymru,,
Democracy & Regulatory Services,Health & Safety,Chief Executive's Unit,Supplies & Services,Services,Training Charges,,11/07/2014,10382011,0,550.00,R,COMPASS Consultancy,,
Children Services,Children Services Teams,Social Care and Health,Supplies & Services,Services,Private Nursery Fees,,29/07/2014,10385646,0,348.50,R,Norfolk House Nursery Ltd,,
Adult Services,Direct Care,Social Care and Health,Supplies & Services,Services,Independent Accommodation,,22/07/2014,10384972,10057978,"1,068.00",R,Papillon Holidays,,
Infrastructure and Networks,Waste and Street Services,Chief Executive's Unit,Third Party Payments,Third Party,Third party payments NOT relating to goods or services,,08/07/2014,10381800,0,500.00,R,Reserve Forces & Cadets Ass. Wales,,
Community Care,Community Care Team,Social Care and Health,Third Party Payments,Third Party,Third party payments NOT relating to goods or services,,25/07/2014,10385598,0,96.00,R,Penpergwm House Ltd,,
Community Care,Community Care Team,Social Care and Health,Third Party Payments,Third Party,Third party payments NOT relating to goods or services,,25/07/2014,10385609,0,42.00,R,Penpergwm House Ltd,,
Community Care,Community Care Team,Social Care and Health,Third Party Payments,Third Party,Third party payments NOT relating to goods or services,,25/07/2014,10385602,0,128.00,R,Penpergwm House Ltd,,
Community Care,Community Learning Disability Team,Social Care and Health,Third Party Payments,Third Party,Third party payments NOT relating to goods or services,,01/07/2014,10381092,0,"1,922.28",R,Reach (Supported Living),,
Community Care,Community Learning Disability Team,Social Care and Health,Third Party Payments,Third Party,Third party payments NOT relating to goods or services,,01/07/2014,10381092,0,"2,046.57",R,Reach (Supported Living),,
Community Care,Community Care Team,Social Care and Health,Third Party Payments,Third Party,Third party payments NOT relating to goods or services,,25/07/2014,10385604,0,48.00,R,Penpergwm House Ltd,,
Community Care,Community Care Team,Social Care and Health,Third Party Payments,Third Party,Third party payments NOT relating to goods or services,,04/07/2014,10381538,0,"9,586.59",R,Abbeyfield South Wales Society Ltd,,
Community Care,Community Care Team,Social Care and Health,Third Party Payments,Third Party,Third party payments NOT relating to goods or services,,04/07/2014,10381538,0,"9,586.59",R,Abbeyfield South Wales Society Ltd,,
Development Planning,Development Plans,Enterprise,Third Party Payments,Third Party,Joint Financing.,,11/07/2014,10382528,10055879,"3,490.00",R,Cardiff University,,
Public Life and Culture,Tourism,Enterprise,Third Party Payments,Third Party,Joint Financing.,,18/07/2014,10384463,10058224,"3,500.00",R,Bridgend County Borough Council,,
"Planning, Place and Enterprise",Regeneration Department,Regeneration & Culture,Third Party Payments,Third Party,General Contracts,,18/07/2014,10383231,10056784,"2,041.24",R,Walford Timber Ltd,,
Infrastructure and Networks,Waste and Street Services,Chief Executive's Unit,Third Party Payments,Third Party,General Contracts,,11/07/2014,10380499,10056143,"7,086.10",R,Homemakers Community Recycling,,
Infrastructure and Networks,Waste and Street Services,Chief Executive's Unit,Third Party Payments,Third Party,General Contracts,,15/07/2014,10382428,10056142,"53,410.57",R,Viridor Waste Management Ltd,,
Community Care,Community Care Team,Social Care and Health,Third Party Payments,Third Party,Conveyance Of Clients,,22/07/2014,10384698,0,304.00,R,ABC Taxis,,
Community Care,Community Learning Disability Team,Social Care and Health,Third Party Payments,Third Party,Conveyance Of Clients,,11/07/2014,10383085,0,518.40,R,Riverwood Housing,,
Community Care,Community Care Team,Social Care and Health,Third Party Payments,Third Party,Other Non Residential Care.,,15/07/2014,10383639,0,791.41,R,Aneurin Bevan Local Health Board,,
Community Care,Community Care Team,Social Care and Health,Third Party Payments,Third Party,Other Non Residential Care.,,15/07/2014,10383640,0,791.41,R,Aneurin Bevan Local Health Board,,
Community Care,Community Care Team,Social Care and Health,Third Party Payments,Third Party,Night Sitting Service.,,29/07/2014,10386237,0,24.88,R,Allied Healthcare Group,,
Community Care,Community Care Team,Social Care and Health,Third Party Payments,Third Party,Night Sitting Service.,,01/07/2014,10380746,0,150.00,R,Radis Community Care,,
Children Services,Children Services Teams,Social Care and Health,Third Party Payments,Third Party,Personal Care.,,04/07/2014,10381521,0,85.66,R,REDACTED PERSONAL DATA,,
Adult Services,Direct Care,Social Care and Health,Third Party Payments,Third Party,Personal Care.,,15/07/2014,306939,0,8.10,R,REDACTED PERSONAL DATA,,
Community Care,Community Care Team,Social Care and Health,Third Party Payments,Third Party,Personal Care.,,11/07/2014,10382694,0,"1,053.48",R,Abicare Services Ltd,,
Community Care,Community Care Team,Social Care and Health,Third Party Payments,Third Party,Personal Care.,,11/07/2014,10382594,0,423.00,R,New Directions Care & Support,,
Community Care,Community Care Team,Social Care and Health,Third Party Payments,Third Party,Personal Care.,,08/07/2014,306916,0,516.00,R,REDACTED PERSONAL DATA,,
Community Care,Community Care Team,Social Care and Health,Third Party Payments,Third Party,Personal Care.,,11/07/2014,10382719,0,459.00,R,Prompt Care Ltd (T/A Sevacare),,
Community Care,Community Care Team,Social Care and Health,Third Party Payments,Third Party,Personal Care.,,22/07/2014,10384609,0,509.62,R,Prompt Care Ltd (T/A Sevacare),,
Community Care,Community Care Team,Social Care and Health,Third Party Payments,Third Party,Personal Care.,,22/07/2014,10384610,0,204.00,R,Prompt Care Ltd (T/A Sevacare),,
Community Care,Community Care Team,Social Care and Health,Third Party Payments,Third Party,Personal Care.,,22/07/2014,10384616,0,76.50,R,Prompt Care Ltd (T/A Sevacare),,
Community Care,Community Care Team,Social Care and Health,Third Party Payments,Third Party,Personal Care.,,22/07/2014,10384674,0,397.80,R,Prompt Care Ltd (T/A Sevacare),,
Community Care,Community Care Team,Social Care and Health,Third Party Payments,Third Party,Personal Care.,,22/07/2014,10384697,0,489.60,R,Prompt Care Ltd (T/A Sevacare),,
Community Care,Community Care Team,Social Care and Health,Third Party Payments,Third Party,Personal Care.,,15/07/2014,306939,0,516.00,R,REDACTED PERSONAL DATA,,
Community Care,Community Care Team,Social Care and Health,Third Party Payments,Third Party,Personal Care.,,22/07/2014,306972,0,866.64,R,REDACTED PERSONAL DATA,,
Community Care,Community Care Team,Social Care and Health,Third Party Payments,Third Party,Personal Care.,,22/07/2014,306972,0,322.08,R,REDACTED PERSONAL DATA,,
Community Care,Community Care Team,Social Care and Health,Third Party Payments,Third Party,Personal Care.,,22/07/2014,306972,0,474.56,R,REDACTED PERSONAL DATA,,
Community Care,Community Care Team,Social Care and Health,Third Party Payments,Third Party,Personal Care.,,22/07/2014,306972,0,477.52,R,REDACTED PERSONAL DATA,,
Community Care,Community Care Team,Social Care and Health,Third Party Payments,Third Party,Personal Care.,,22/07/2014,306972,0,337.00,R,REDACTED PERSONAL DATA,,
Community Care,Community Care Team,Social Care and Health,Third Party Payments,Third Party,Personal Care.,,25/07/2014,10385637,0,640.09,R,Q Care Ltd,,
Community Care,Community Care Team,Social Care and Health,Third Party Payments,Third Party,Personal Care.,,25/07/2014,10385697,0,97.40,R,Q Care Ltd,,
Community Care,Community Care Team,Social Care and Health,Third Party Payments,Third Party,Personal Care.,,25/07/2014,10385642,0,389.62,R,Q Care Ltd,,
Community Care,Community Care Team,Social Care and Health,Third Party Payments,Third Party,Personal Care.,,25/07/2014,10385643,0,965.83,R,Q Care Ltd,,
Community Care,Community Care Team,Social Care and Health,Third Party Payments,Third Party,Personal Care.,,25/07/2014,10385683,0,60.72,R,Q Care Ltd,,
Community Care,Community Care Team,Social Care and Health,Third Party Payments,Third Party,Personal Care.,,25/07/2014,10385625,0,230.87,R,Q Care Ltd,,
Community Care,Community Care Team,Social Care and Health,Third Party Payments,Third Party,Personal Care.,,29/07/2014,10386239,0,14.94,R,Allied Healthcare Group,,
Community Care,Community Care Team,Social Care and Health,Third Party Payments,Third Party,Personal Care.,,29/07/2014,10386308,0,410.85,R,Allied Healthcare Group,,
Community Care,Community Care Team,Social Care and Health,Third Party Payments,Third Party,Personal Care.,,29/07/2014,10386296,0,251.44,R,Allied Healthcare Group,,
Community Care,Community Care Team,Social Care and Health,Third Party Payments,Third Party,Personal Care.,,29/07/2014,10386337,0,722.10,R,Allied Healthcare Group,,
Community Care,Community Care Team,Social Care and Health,Third Party Payments,Third Party,Personal Care.,,29/07/2014,10386331,0,380.95,R,Allied Healthcare Group,,
Community Care,Community Care Team,Social Care and Health,Third Party Payments,Third Party,Personal Care.,,29/07/2014,10386327,0,599.84,R,Allied Healthcare Group,,
Community Care,Community Care Team,Social Care and Health,Third Party Payments,Third Party,Personal Care.,,29/07/2014,10386329,0,271.41,R,Allied Healthcare Group,,
Community Care,Community Care Team,Social Care and Health,Third Party Payments,Third Party,Personal Care.,,29/07/2014,10386118,0,209.36,R,Allied Healthcare Group,,
Community Care,Community Care Team,Social Care and Health,Third Party Payments,Third Party,Personal Care.,,11/07/2014,10382550,0,8.70,R,Autumn Leaves Homecare,,
Community Care,Community Care Team,Social Care and Health,Third Party Payments,Third Party,Personal Care.,,11/07/2014,10382549,0,12.79,R,Autumn Leaves Homecare,,
Community Care,Community Care Team,Social Care and Health,Third Party Payments,Third Party,Personal Care.,,11/07/2014,10382560,0,89.76,R,Autumn Leaves Homecare,,
Community Care,Community Care Team,Social Care and Health,Third Party Payments,Third Party,Personal Care.,,11/07/2014,10382565,0,75.90,R,Autumn Leaves Homecare,,
Community Care,Community Care Team,Social Care and Health,Third Party Payments,Third Party,Personal Care.,,18/07/2014,10382295,0,8.81,R,Autumn Leaves Homecare,,
Community Care,Community Care Team,Social Care and Health,Third Party Payments,Third Party,Personal Care.,,11/07/2014,10382717,0,436.80,R,Prompt Care Ltd (T/A Sevacare),,
Community Care,Community Care Team,Social Care and Health,Third Party Payments,Third Party,Personal Care.,,18/07/2014,10382289,0,1.50,R,Autumn Leaves Homecare,,
Community Care,Community Care Team,Social Care and Health,Third Party Payments,Third Party,Personal Care.,,22/07/2014,10384611,0,436.80,R,Prompt Care Ltd (T/A Sevacare),,
Community Care,Community Care Team,Social Care and Health,Third Party Payments,Third Party,Personal Care.,,22/07/2014,10384606,0,423.90,R,Penpergwm House Ltd,,
Community Care,Community Care Team,Social Care and Health,Third Party Payments,Third Party,Personal Care.,,22/07/2014,10384615,0,62.40,R,Prompt Care Ltd (T/A Sevacare),,
Community Care,Community Care Team,Social Care and Health,Third Party Payments,Third Party,Personal Care.,,22/07/2014,10384645,0,821.60,R,Prompt Care Ltd (T/A Sevacare),,
Community Care,Community Care Team,Social Care and Health,Third Party Payments,Third Party,Personal Care.,,22/07/2014,10384691,0,46.80,R,Prompt Care Ltd (T/A Sevacare),,
Community Care,Community Care Team,Social Care and Health,Third Party Payments,Third Party,Personal Care.,,15/07/2014,10383642,0,945.77,R,REDACTED PERSONAL DATA,,
Community Care,Community Care Team,Social Care and Health,Third Party Payments,Third Party,Personal Care.,,22/07/2014,306972,0,412.00,R,REDACTED PERSONAL DATA,,
Community Care,Community Care Team,Social Care and Health,Third Party Payments,Third Party,Personal Care.,,22/07/2014,306972,0,240.92,R,REDACTED PERSONAL DATA,,
Community Care,Community Care Team,Social Care and Health,Third Party Payments,Third Party,Personal Care.,,22/07/2014,306972,0,"1,670.00",R,REDACTED PERSONAL DATA,,
Community Care,Community Care Team,Social Care and Health,Third Party Payments,Third Party,Personal Care.,,01/07/2014,10380828,0,851.76,R,Radis Community Care,,
Community Care,Community Care Team,Social Care and Health,Third Party Payments,Third Party,Personal Care.,,01/07/2014,10380744,0,60.48,R,Radis Community Care,,
Community Care,Community Care Team,Social Care and Health,Third Party Payments,Third Party,Personal Care.,,01/07/2014,10380782,0,148.68,R,Radis Community Care,,
Community Care,Community Care Team,Social Care and Health,Third Party Payments,Third Party,Personal Care.,,01/07/2014,10380861,0,110.88,R,Radis Community Care,,
Community Care,Community Care Team,Social Care and Health,Third Party Payments,Third Party,Personal Care.,,25/07/2014,10385595,0,151.20,R,JSJ Supported Living Ltd,,
Community Care,Community Care Team,Social Care and Health,Third Party Payments,Third Party,Personal Care.,,01/07/2014,10380856,0,381.00,R,Radis Community Care,,
Community Care,Community Care Team,Social Care and Health,Third Party Payments,Third Party,Personal Care.,,01/07/2014,10380915,0,302.40,R,Radis Community Care,,
Community Care,Community Care Team,Social Care and Health,Third Party Payments,Third Party,Personal Care.,,01/07/2014,10380794,0,491.40,R,Radis Community Care,,
Community Care,Community Care Team,Social Care and Health,Third Party Payments,Third Party,Personal Care.,,01/07/2014,10380722,0,492.03,R,Radis Community Care,,
Community Care,Community Care Team,Social Care and Health,Third Party Payments,Third Party,Personal Care.,,01/07/2014,10380754,0,58.42,R,Radis Community Care,,
Community Care,Community Care Team,Social Care and Health,Third Party Payments,Third Party,Personal Care.,,01/07/2014,10380925,0,60.96,R,Radis Community Care,,
Community Care,Community Care Team,Social Care and Health,Third Party Payments,Third Party,Personal Care.,,04/07/2014,10381535,0,417.68,R,Oaklands Healthcare Europe Ltd,,
Community Care,Community Care Team,Social Care and Health,Third Party Payments,Third Party,Personal Care.,,11/07/2014,10382585,0,"1,848.12",R,New Directions Care & Support,,
Community Care,Community Care Team,Social Care and Health,Third Party Payments,Third Party,Personal Care.,,11/07/2014,10382702,0,127.80,R,Abicare Services Ltd,,
Community Care,Community Care Team,Social Care and Health,Third Party Payments,Third Party,Personal Care.,,11/07/2014,10382706,0,443.04,R,Abicare Services Ltd,,
Community Care,Community Care Team,Social Care and Health,Third Party Payments,Third Party,Personal Care.,,11/07/2014,10382608,0,"1,212.25",R,Abicare Services Ltd,,
Community Care,Community Care Team,Social Care and Health,Third Party Payments,Third Party,Personal Care.,,22/07/2014,10384731,0,"2,096.54",R,Lougher Home Care Ltd,,
Community Care,Community Care Team,Social Care and Health,Third Party Payments,Third Party,Personal Care.,,22/07/2014,10384605,0,505.68,R,New Directions Care & Support,,
Community Care,Community Care Team,Social Care and Health,Third Party Payments,Third Party,Personal Care.,,22/07/2014,10384744,0,"2,940.00",R,Lougher Home Care Ltd,,
Community Care,Community Care Team,Social Care and Health,Third Party Payments,Third Party,Personal Care.,,22/07/2014,10384737,0,792.00,R,Lougher Home Care Ltd,,
Community Care,Community Care Team,Social Care and Health,Third Party Payments,Third Party,Personal Care.,,22/07/2014,10384738,0,822.00,R,Lougher Home Care Ltd,,
Community Care,Community Care Team,Social Care and Health,Third Party Payments,Third Party,Personal Care.,,22/07/2014,10384740,0,"1,848.00",R,Lougher Home Care Ltd,,
Community Care,Community Care Team,Social Care and Health,Third Party Payments,Third Party,Personal Care.,,22/07/2014,10384750,0,36.00,R,Lougher Home Care Ltd,,
Community Care,Community Care Team,Social Care and Health,Third Party Payments,Third Party,Personal Care.,,22/07/2014,306972,0,"1,724.00",R,REDACTED PERSONAL DATA,,
Community Care,Community Care Team,Social Care and Health,Third Party Payments,Third Party,Personal Care.,,22/07/2014,306972,0,"1,096.80",R,REDACTED PERSONAL DATA,,
Community Care,Community Care Team,Social Care and Health,Third Party Payments,Third Party,Personal Care.,,22/07/2014,306972,0,121.20,R,REDACTED PERSONAL DATA,,
Community Care,Community Care Team,Social Care and Health,Third Party Payments,Third Party,Personal Care.,,22/07/2014,306972,0,"1,367.50",R,REDACTED PERSONAL DATA,,
Community Care,Community Care Team,Social Care and Health,Third Party Payments,Third Party,Personal Care.,,22/07/2014,306972,0,500.00,R,REDACTED PERSONAL DATA,,
Community Care,Community Care Team,Social Care and Health,Third Party Payments,Third Party,Personal Care.,,22/07/2014,306972,0,586.64,R,REDACTED PERSONAL DATA,,
Community Care,Community Care Team,Social Care and Health,Third Party Payments,Third Party,Personal Care.,,22/07/2014,306972,0,"2,300.00",R,REDACTED PERSONAL DATA,,
Community Care,Community Care Team,Social Care and Health,Third Party Payments,Third Party,Personal Care.,,01/07/2014,10380763,0,67.50,R,Radis Community Care,,
Community Care,Community Care Team,Social Care and Health,Third Party Payments,Third Party,Personal Care.,,25/07/2014,10385618,0,10.12,R,Q Care Ltd,,
Community Care,Community Care Team,Social Care and Health,Third Party Payments,Third Party,Personal Care.,,25/07/2014,10385702,0,63.25,R,Q Care Ltd,,
Community Care,Community Care Team,Social Care and Health,Third Party Payments,Third Party,Personal Care.,,25/07/2014,10385721,0,"1,151.79",R,Q Care Ltd,,
Community Care,Community Care Team,Social Care and Health,Third Party Payments,Third Party,Personal Care.,,25/07/2014,10385804,0,339.02,R,Q Care Ltd,,
Community Care,Community Care Team,Social Care and Health,Third Party Payments,Third Party,Personal Care.,,01/07/2014,10380982,0,480.00,R,Radis Community Care,,
Community Care,Community Care Team,Social Care and Health,Third Party Payments,Third Party,Personal Care.,,01/07/2014,10380918,0,380.00,R,Radis Community Care,,
Community Care,Community Care Team,Social Care and Health,Third Party Payments,Third Party,Personal Care.,,25/07/2014,10385792,0,"1,886.11",R,Q Care Ltd,,
Community Care,Community Care Team,Social Care and Health,Third Party Payments,Third Party,Personal Care.,,01/07/2014,10380769,0,430.00,R,Radis Community Care,,
Community Care,Community Care Team,Social Care and Health,Third Party Payments,Third Party,Personal Care.,,01/07/2014,10380910,0,501.25,R,Radis Community Care,,
Community Care,Community Care Team,Social Care and Health,Third Party Payments,Third Party,Personal Care.,,01/07/2014,10380745,0,835.00,R,Radis Community Care,,
Community Care,Community Care Team,Social Care and Health,Third Party Payments,Third Party,Personal Care.,,25/07/2014,10385769,0,366.85,R,Q Care Ltd,,
Community Care,Community Care Team,Social Care and Health,Third Party Payments,Third Party,Personal Care.,,01/07/2014,10380972,0,415.00,R,Radis Community Care,,
Community Care,Community Care Team,Social Care and Health,Third Party Payments,Third Party,Personal Care.,,01/07/2014,10380927,0,"1,942.50",R,Radis Community Care,,
Community Care,Community Care Team,Social Care and Health,Third Party Payments,Third Party,Personal Care.,,01/07/2014,10380928,0,888.76,R,Radis Community Care,,
Community Care,Community Care Team,Social Care and Health,Third Party Payments,Third Party,Personal Care.,,01/07/2014,10380806,0,140.00,R,Radis Community Care,,
Community Care,Community Care Team,Social Care and Health,Third Party Payments,Third Party,Personal Care.,,29/07/2014,10386143,0,293.81,R,Allied Healthcare Group,,
Community Care,Community Care Team,Social Care and Health,Third Party Payments,Third Party,Personal Care.,,29/07/2014,10386228,0,234.06,R,Allied Healthcare Group,,
Community Care,Community Care Team,Social Care and Health,Third Party Payments,Third Party,Personal Care.,,29/07/2014,10386272,0,93.30,R,Allied Healthcare Group,,
Community Care,Community Care Team,Social Care and Health,Third Party Payments,Third Party,Personal Care.,,29/07/2014,10386123,0,49.76,R,Allied Healthcare Group,,
Community Care,Community Learning Disability Team,Social Care and Health,Third Party Payments,Third Party,Personal Care.,,18/07/2014,10382627,0,180.00,R,Meadow Mill Mobile,,
Community Care,Community Learning Disability Team,Social Care and Health,Third Party Payments,Third Party,Personal Care.,,08/07/2014,306916,0,22.50,R,REDACTED PERSONAL DATA,,
Community Care,Community Learning Disability Team,Social Care and Health,Third Party Payments,Third Party,Personal Care.,,08/07/2014,306916,0,22.50,R,REDACTED PERSONAL DATA,,
Community Care,Community Learning Disability Team,Social Care and Health,Third Party Payments,Third Party,Personal Care.,,08/07/2014,306916,0,585.90,R,REDACTED PERSONAL DATA,,
Community Care,Community Learning Disability Team,Social Care and Health,Third Party Payments,Third Party,Personal Care.,,08/07/2014,306916,0,193.00,R,REDACTED PERSONAL DATA,,
Community Care,Community Learning Disability Team,Social Care and Health,Third Party Payments,Third Party,Personal Care.,,11/07/2014,10383139,0,"1,530.00",R,Reach (Supported Living),,
Community Care,Community Learning Disability Team,Social Care and Health,Third Party Payments,Third Party,Personal Care.,,11/07/2014,10383144,0,345.00,R,Reach (Supported Living),,
Community Care,Community Learning Disability Team,Social Care and Health,Third Party Payments,Third Party,Personal Care.,,11/07/2014,10383163,0,891.00,R,Consensus,,
Community Care,Community Learning Disability Team,Social Care and Health,Third Party Payments,Third Party,Personal Care.,,15/07/2014,306939,0,44.80,R,REDACTED PERSONAL DATA,,
Community Care,Community Learning Disability Team,Social Care and Health,Third Party Payments,Third Party,Personal Care.,,15/07/2014,306939,0,21.60,R,REDACTED PERSONAL DATA,,
Community Care,Community Learning Disability Team,Social Care and Health,Third Party Payments,Third Party,Personal Care.,,22/07/2014,306972,0,"1,198.28",R,REDACTED PERSONAL DATA,,
Community Care,Community Learning Disability Team,Social Care and Health,Third Party Payments,Third Party,Personal Care.,,22/07/2014,306972,0,879.88,R,REDACTED PERSONAL DATA,,
Community Care,Community Learning Disability Team,Social Care and Health,Third Party Payments,Third Party,Personal Care.,,22/07/2014,306972,0,228.37,R,REDACTED PERSONAL DATA,,
Community Care,Community Learning Disability Team,Social Care and Health,Third Party Payments,Third Party,Personal Care.,,22/07/2014,306972,0,464.00,R,REDACTED PERSONAL DATA,,
Community Care,Community Learning Disability Team,Social Care and Health,Third Party Payments,Third Party,Personal Care.,,29/07/2014,306988,0,244.72,R,REDACTED PERSONAL DATA,,
Community Care,Community Learning Disability Team,Social Care and Health,Third Party Payments,Third Party,Personal Care.,,29/07/2014,306988,0,412.00,R,REDACTED PERSONAL DATA,,
Community Care,Community Learning Disability Team,Social Care and Health,Third Party Payments,Third Party,Personal Care.,,29/07/2014,306988,0,332.64,R,REDACTED PERSONAL DATA,,
Community Care,Community Learning Disability Team,Social Care and Health,Third Party Payments,Third Party,Personal Care.,,29/07/2014,306988,0,401.00,R,REDACTED PERSONAL DATA,,
Community Care,Community Learning Disability Team,Social Care and Health,Third Party Payments,Third Party,Personal Care.,,25/07/2014,10385586,0,840.00,R,JSJ Supported Living Ltd,,
Community Care,Community Learning Disability Team,Social Care and Health,Third Party Payments,Third Party,Personal Care.,,29/07/2014,306988,0,38.40,R,REDACTED PERSONAL DATA,,
Community Care,Community Learning Disability Team,Social Care and Health,Third Party Payments,Third Party,Personal Care.,,29/07/2014,306988,0,297.00,R,REDACTED PERSONAL DATA,,
Community Care,Community Learning Disability Team,Social Care and Health,Third Party Payments,Third Party,Personal Care.,,29/07/2014,306988,0,38.40,R,REDACTED PERSONAL DATA,,
Community Care,Community Learning Disability Team,Social Care and Health,Third Party Payments,Third Party,Personal Care.,,29/07/2014,306988,0,44.80,R,REDACTED PERSONAL DATA,,
Community Care,Community Learning Disability Team,Social Care and Health,Third Party Payments,Third Party,Personal Care.,,29/07/2014,306988,0,38.40,R,REDACTED PERSONAL DATA,,
Community Care,Community Learning Disability Team,Social Care and Health,Third Party Payments,Third Party,Personal Care.,,22/07/2014,306966,0,246.00,R,REDACTED PERSONAL DATA,,
Community Care,Community Learning Disability Team,Social Care and Health,Third Party Payments,Third Party,Personal Care.,,22/07/2014,306966,0,193.00,R,REDACTED PERSONAL DATA,,
Community Care,Community Learning Disability Team,Social Care and Health,Third Party Payments,Third Party,Personal Care.,,22/07/2014,306966,0,44.80,R,REDACTED PERSONAL DATA,,
Community Care,Community Learning Disability Team,Social Care and Health,Third Party Payments,Third Party,Personal Care.,,22/07/2014,306966,0,246.00,R,REDACTED PERSONAL DATA,,
Community Care,Community Learning Disability Team,Social Care and Health,Third Party Payments,Third Party,Personal Care.,,11/07/2014,10382730,0,945.00,R,Chepstow & District Mencap Soc Ltd,,
Community Care,Community Care Team,Social Care and Health,Third Party Payments,Third Party,Personal Care.,,08/07/2014,10382479,0,127.00,R,Radis Community Care,,
Community Care,Community Care Team,Social Care and Health,Third Party Payments,Third Party,Personal Care.,,08/07/2014,10382455,0,192.50,R,Radis Community Care,,
Community Care,Community Care Team,Social Care and Health,Third Party Payments,Third Party,Personal Care.,,11/07/2014,10383115,0,"3,560.00",R,Encompass Care,,
Community Care,Community Care Team,Social Care and Health,Third Party Payments,Third Party,Personal Care.,,11/07/2014,10383115,0,"3,560.00",R,Encompass Care,,
Community Care,Community Care Team,Social Care and Health,Third Party Payments,Third Party,Personal Care.,,22/07/2014,10384652,0,693.60,R,Prompt Care Ltd (T/A Sevacare),,
Community Care,Community Care Team,Social Care and Health,Third Party Payments,Third Party,Personal Care.,,22/07/2014,10384705,0,509.58,R,Penpergwm House Ltd,,
Community Care,Community Care Team,Social Care and Health,Third Party Payments,Third Party,Personal Care.,,22/07/2014,10384712,0,732.12,R,Penpergwm House Ltd,,
Community Care,Community Care Team,Social Care and Health,Third Party Payments,Third Party,Personal Care.,,25/07/2014,10385594,0,"1,881.60",R,JSJ Supported Living Ltd,,
Community Care,Community Care Team,Social Care and Health,Third Party Payments,Third Party,Personal Care.,,01/07/2014,10380796,0,200.00,R,Radis Community Care,,
Community Care,Community Care Team,Social Care and Health,Third Party Payments,Third Party,Personal Care.,,25/07/2014,10385757,0,63.26,R,Q Care Ltd,,
Community Care,Community Care Team,Social Care and Health,Third Party Payments,Third Party,Personal Care.,,29/07/2014,10386339,0,400.89,R,Allied Healthcare Group,,
Community Care,Community Care Team,Social Care and Health,Third Party Payments,Third Party,Personal Care.,,11/07/2014,10382589,0,262.20,R,Kemble Care,,
Community Care,Community Care Team,Social Care and Health,Third Party Payments,Third Party,Personal Care.,,22/07/2014,10384667,0,428.40,R,Prompt Care Ltd (T/A Sevacare),,
Community Care,Community Care Team,Social Care and Health,Third Party Payments,Third Party,Personal Care.,,22/07/2014,306972,0,158.48,R,REDACTED PERSONAL DATA,,
Community Care,Community Care Team,Social Care and Health,Third Party Payments,Third Party,Personal Care.,,01/07/2014,10380739,0,361.26,R,Radis Community Care,,
Community Care,Community Care Team,Social Care and Health,Third Party Payments,Third Party,Personal Care.,,01/07/2014,10380855,0,103.32,R,Radis Community Care,,
Community Care,Community Care Team,Social Care and Health,Third Party Payments,Third Party,Personal Care.,,01/07/2014,10380725,0,"1,852.50",R,Radis Community Care,,
Community Care,Community Care Team,Social Care and Health,Third Party Payments,Third Party,Personal Care.,,01/07/2014,10380812,0,632.50,R,Radis Community Care,,
Community Care,Community Care Team,Social Care and Health,Third Party Payments,Third Party,Personal Care.,,25/07/2014,10385787,0,161.92,R,Q Care Ltd,,
Community Care,Community Care Team,Social Care and Health,Third Party Payments,Third Party,Personal Care.,,01/07/2014,10380868,0,20.00,R,Radis Community Care,,
Community Care,Community Care Team,Social Care and Health,Third Party Payments,Third Party,Personal Care.,,01/07/2014,10380872,0,90.00,R,Radis Community Care,,
Community Care,Community Care Team,Social Care and Health,Third Party Payments,Third Party,Personal Care.,,01/07/2014,10380730,0,90.00,R,Radis Community Care,,
Children Services,Children Services Teams,Social Care and Health,Third Party Payments,Third Party,Residential.,,25/07/2014,10384851,0,"1,508.23",R,Priory Education Services,,
Community Care,Community Care Team,Social Care and Health,Third Party Payments,Third Party,Residential.,,08/07/2014,10382279,0,"1,657.60",R,Bedwelty Park Residential Home,,
Community Care,Community Care Team,Social Care and Health,Third Party Payments,Third Party,Residential.,,11/07/2014,306934,0,"2,480.00",R,Penpergwm House Ltd,,
Community Care,Community Care Team,Social Care and Health,Third Party Payments,Third Party,Residential.,,25/07/2014,306973,0,"2,344.00",R,Adriana Ltd,,
Community Care,Community Care Team,Social Care and Health,Third Party Payments,Third Party,Residential.,,25/07/2014,306973,0,"1,944.00",R,Adriana Ltd,,
Community Care,Community Care Team,Social Care and Health,Third Party Payments,Third Party,Residential.,,22/07/2014,10384530,0,"1,944.00",R,Cantref Homes Ltd,,
Community Care,Community Care Team,Social Care and Health,Third Party Payments,Third Party,Residential.,,22/07/2014,10384530,0,"1,944.00",R,Cantref Homes Ltd,,
Community Care,Community Care Team,Social Care and Health,Third Party Payments,Third Party,Residential.,,25/07/2014,306973,0,"1,944.00",R,Adriana Ltd,,
Community Care,Community Care Team,Social Care and Health,Third Party Payments,Third Party,Residential.,,25/07/2014,306973,0,"1,944.00",R,Adriana Ltd,,
Community Care,Community Care Team,Social Care and Health,Third Party Payments,Third Party,Residential.,,22/07/2014,10384528,0,"1,944.00",R,Bethany Christian Residential Ho,,
Community Care,Community Learning Disability Team,Social Care and Health,Third Party Payments,Third Party,Residential.,,04/07/2014,10381522,0,"5,000.00",R,Eriskay Residential Care,,
Community Care,Community Learning Disability Team,Social Care and Health,Third Party Payments,Third Party,Residential.,,25/07/2014,306973,0,"3,974.08",R,Expanding Horizons & Pro Choice,,
Community Care,Community Learning Disability Team,Social Care and Health,Third Party Payments,Third Party,Residential.,,18/07/2014,10384496,0,"1,268.00",R,Voyage,,
Community Care,Community Care Team,Social Care and Health,Third Party Payments,Third Party,Residential.,,11/07/2014,306934,0,"1,542.00",R,Gibraltar House,,
Community Care,Community Care Team,Social Care and Health,Third Party Payments,Third Party,Residential.,,18/07/2014,10383050,0,"3,975.96",R,Leonard Cheshire Disability,,
Community Care,Community Care Team,Social Care and Health,Third Party Payments,Third Party,Residential.,,18/07/2014,10384504,0,"3,500.70",R,Ramsay Neurological Services,,
Community Care,Community Care Team,Social Care and Health,Third Party Payments,Third Party,Nursing.,,11/07/2014,306934,0,375.43,R,Gibraltar House,,
Community Care,Community Care Team,Social Care and Health,Third Party Payments,Third Party,Nursing.,,11/07/2014,306934,0,"3,740.72",R,Gibraltar House,,
Community Care,Community Care Team,Social Care and Health,Third Party Payments,Third Party,Nursing.,,25/07/2014,306973,0,"2,032.00",R,Glaslyn Retirement Home Ltd,,
Community Care,Community Care Team,Social Care and Health,Third Party Payments,Third Party,Nursing.,,11/07/2014,306934,0,"2,032.00",R,Gibraltar House,,
Community Care,Community Care Team,Social Care and Health,Third Party Payments,Third Party,Nursing.,,11/07/2014,306934,0,"2,032.00",R,Gibraltar House,,
Community Care,Community Care Team,Social Care and Health,Third Party Payments,Third Party,Nursing.,,25/07/2014,306973,0,"1,886.86",R,Adriana Ltd,,
Community Care,Community Care Team,Social Care and Health,Third Party Payments,Third Party,Nursing.,,11/07/2014,306934,0,"2,268.00",R,Gibraltar House,,
Community Care,Community Care Team,Social Care and Health,Third Party Payments,Third Party,Nursing.,,25/07/2014,306973,0,"2,032.00",R,Glaslyn Retirement Home Ltd,,
Community Care,Community Care Team,Social Care and Health,Third Party Payments,Third Party,Nursing.,,25/07/2014,306973,0,"3,241.80",R,The Shaw Foundation Limited,,
Community Care,Community Care Team,Social Care and Health,Third Party Payments,Third Party,Nursing.,,25/07/2014,306973,0,"2,068.00",R,Rozelle Nursing Home (SKM Medical Limited),,
Community Care,Community Care Team,Social Care and Health,Third Party Payments,Third Party,Nursing.,,22/07/2014,10384570,0,"1,700.00",R,Danygraig Nursing Home,,
Community Care,Community Care Team,Social Care and Health,Third Party Payments,Third Party,Domestic Care,,22/07/2014,10384634,0,765.00,R,Prompt Care Ltd (T/A Sevacare),,
Community Care,Community Care Team,Social Care and Health,Third Party Payments,Third Party,Domestic Care,,25/07/2014,10385695,0,164.45,R,Q Care Ltd,,
Community Care,Community Care Team,Social Care and Health,Third Party Payments,Third Party,Domestic Care,,29/07/2014,10386474,0,262.02,R,Shaw Healthcare (Community Services) Ltd,,
Community Care,Community Care Team,Social Care and Health,Third Party Payments,Third Party,Domestic Care,,01/07/2014,10380916,0,356.26,R,Radis Community Care,,
Community Care,Community Care Team,Social Care and Health,Third Party Payments,Third Party,Domestic Care,,25/07/2014,10385719,0,114.48,R,Q Care Ltd,,
Community Care,Community Learning Disability Team,Social Care and Health,Third Party Payments,Third Party,Domestic Care,,29/07/2014,10386477,0,637.50,R,Reach (Supported Living),,
Community Care,Community Care Team,Social Care and Health,Third Party Payments,Third Party,Domestic Care,,29/07/2014,10386473,0,580.59,R,Shaw Healthcare (Community Services) Ltd,,
Community Care,Community Care Team,Social Care and Health,Third Party Payments,Third Party,Domestic Care,,04/07/2014,10381097,0,654.51,R,Reach (Supported Living),,
Community Care,Community Care Team,Social Care and Health,Third Party Payments,Third Party,Domestic Care,,29/07/2014,10386278,0,74.64,R,Allied Healthcare Group,,
Community Care,Community Learning Disability Team,Social Care and Health,Third Party Payments,Third Party,Day Care,,11/07/2014,10382596,0,238.38,R,Blaenau Gwent County Borough Council,,
Community Care,Community Care Team,Social Care and Health,Third Party Payments,Third Party,Day Care,,11/07/2014,10382753,0,192.08,R,Sally Lynch Community Care Enterprises Ltd,,
Standards,Additional Learning Needs,Children & Young People,Third Party Payments,Third Party,Placement Fees,,18/07/2014,10384451,10057478,"19,890.79",R,North Hill House,,
Schools Total,School Group 7 � Pupil Capacity 501-1800,MCC Schools,Transport,Contract Hire and Operating Leases,Vehicle Hire Charge,,11/07/2014,10383012,0,200.00,R,Monmouthshire C.C.,,
Schools Total,School Group 7 � Pupil Capacity 501-1800,MCC Schools,Transport,Contract Hire and Operating Leases,Vehicle Hire Charge,,29/07/2014,10386085,0,25.00,R,Jmc Monmouth Ltd,,
Infrastructure and Networks,Waste and Street Services,Chief Executive's Unit,Transport,Contract Hire and Operating Leases,Vehicle Hire Charge,,08/07/2014,10381227,0,145.00,R,Gullivers Truck Hire Ltd,,
Infrastructure and Networks,Waste and Street Services,Chief Executive's Unit,Transport,Contract Hire and Operating Leases,Vehicle Hire Charge,,08/07/2014,10381235,0,145.00,R,Gullivers Truck Hire Ltd,,
Infrastructure and Networks,Waste and Street Services,Chief Executive's Unit,Transport,Contract Hire and Operating Leases,Vehicle Hire Charge,,08/07/2014,10381242,0,625.00,R,Gullivers Truck Hire Ltd,,
Infrastructure and Networks,Waste and Street Services,Chief Executive's Unit,Transport,Contract Hire and Operating Leases,Vehicle Hire Charge,,22/07/2014,10384281,0,145.00,R,Gullivers Truck Hire Ltd,,
Infrastructure and Networks,Home to School Transport Dept,Chief Executive's Unit,Transport,Contract Hire and Operating Leases,Vehicle Hire Charge,,15/07/2014,10380040,0,"4,735.04",R,REDACTED PERSONAL DATA,,
Infrastructure and Networks,Home to School Transport Dept,Chief Executive's Unit,Transport,Contract Hire and Operating Leases,Vehicle Hire Charge,,11/07/2014,10382145,0,"2,100.00",R,K & M Taxis,,
Infrastructure and Networks,Home to School Transport Dept,Chief Executive's Unit,Transport,Contract Hire and Operating Leases,Vehicle Hire Charge,,15/07/2014,10383417,0,350.00,R,J.L.D Travel,,
Infrastructure and Networks,Home to School Transport Dept,Chief Executive's Unit,Transport,Contract Hire and Operating Leases,Vehicle Hire Charge,,18/07/2014,10383836,0,416.00,R,REDACTED PERSONAL DATA,,
Infrastructure and Networks,Home to School Transport Dept,Chief Executive's Unit,Transport,Contract Hire and Operating Leases,Vehicle Hire Charge,,11/07/2014,10383218,0,"1,537.60",R,Jmc Monmouth Ltd,,
Infrastructure and Networks,Home to School Transport Dept,Chief Executive's Unit,Transport,Contract Hire and Operating Leases,Vehicle Hire Charge,,11/07/2014,10382801,0,600.00,R,Lewis Taxis of Abergavenny,,
Infrastructure and Networks,Home to School Transport Dept,Chief Executive's Unit,Transport,Contract Hire and Operating Leases,Vehicle Hire Charge,,15/07/2014,10383466,0,"1,890.00",R,Capitol Hire,,
Infrastructure and Networks,Home to School Transport Dept,Chief Executive's Unit,Transport,Contract Hire and Operating Leases,Vehicle Hire Charge,,15/07/2014,10383504,0,"2,430.00",R,Denzil Davies Taxis,,
Infrastructure and Networks,Home to School Transport Dept,Chief Executive's Unit,Transport,Contract Hire and Operating Leases,Vehicle Hire Charge,,15/07/2014,10383507,0,"3,081.12",R,A&K Travel,,
Infrastructure and Networks,Home to School Transport Dept,Chief Executive's Unit,Transport,Contract Hire and Operating Leases,Vehicle Hire Charge,,04/07/2014,10380023,0,"1,484.23",R,REDACTED PERSONAL DATA,,
Infrastructure and Networks,Home to School Transport Dept,Chief Executive's Unit,Transport,Contract Hire and Operating Leases,Vehicle Hire Charge,,11/07/2014,10383217,0,798.00,R,Jmc Monmouth Ltd,,
Infrastructure and Networks,Home to School Transport Dept,Chief Executive's Unit,Transport,Contract Hire and Operating Leases,Vehicle Hire Charge,,11/07/2014,10383224,0,"1,866.90",R,Dianes Minibus Hire,,
Infrastructure and Networks,Home to School Transport Dept,Chief Executive's Unit,Transport,Contract Hire and Operating Leases,Vehicle Hire Charge,,11/07/2014,10383212,0,"2,354.60",R,Jmc Monmouth Ltd,,
Infrastructure and Networks,Home to School Transport Dept,Chief Executive's Unit,Transport,Contract Hire and Operating Leases,Vehicle Hire Charge,,11/07/2014,10383216,0,"1,370.04",R,Jmc Monmouth Ltd,,
Infrastructure and Networks,Home to School Transport Dept,Chief Executive's Unit,Transport,Contract Hire and Operating Leases,Vehicle Hire Charge,,11/07/2014,10382800,0,"1,816.00",R,REDACTED PERSONAL DATA,,
Infrastructure and Networks,Home to School Transport Dept,Chief Executive's Unit,Transport,Contract Hire and Operating Leases,Vehicle Hire Charge,,18/07/2014,10384088,0,"7,837.55",R,Phillips Transport Ltd,,
Infrastructure and Networks,Highways,Chief Executive's Unit,Transport,Contract Hire and Operating Leases,Vehicle Hire Charge,,18/07/2014,10384283,0,"1,100.00",R,Gullivers Truck Hire Ltd,,
Infrastructure and Networks,Highways,Chief Executive's Unit,Transport,Contract Hire and Operating Leases,Plant Hire Charge,,29/07/2014,10386050,0,158.24,R,Gibbon Equipment Hire,,
Infrastructure and Networks,Highways,Chief Executive's Unit,Transport,Contract Hire and Operating Leases,Plant Hire Charge,,18/07/2014,10383763,807981,307.65,R,F&J Plant Hire,,
Infrastructure and Networks,Highways,Chief Executive's Unit,Transport,Contract Hire and Operating Leases,Plant Hire Charge,,18/07/2014,10383768,808378,-869.50,R,Digby Plant Ltd,,
Infrastructure and Networks,Highways,Chief Executive's Unit,Transport,Contract Hire and Operating Leases,Plant Hire Charge,,18/07/2014,10383771,808396,240.00,R,Tom Prichard Contracting Ltd,,
Infrastructure and Networks,Highways,Chief Executive's Unit,Transport,Contract Hire and Operating Leases,Plant Hire Charge,,08/07/2014,10382403,808396,"2,067.50",R,Tom Prichard Contracting Ltd,,
Infrastructure and Networks,Highways,Chief Executive's Unit,Transport,Contract Hire and Operating Leases,Plant Hire Charge,,18/07/2014,10383766,808396,"4,462.50",R,Tom Prichard Contracting Ltd,,
Infrastructure and Networks,Highways,Chief Executive's Unit,Transport,Contract Hire and Operating Leases,Plant Hire Charge,,25/07/2014,10385991,808390,460.00,R,SHB Hire Ltd,,
Infrastructure and Networks,Highways,Chief Executive's Unit,Transport,Contract Hire and Operating Leases,Plant Hire Charge,,25/07/2014,10385993,808390,460.00,R,SHB Hire Ltd,,
Infrastructure and Networks,Highways,Chief Executive's Unit,Transport,Contract Hire and Operating Leases,Plant Hire Charge,,04/07/2014,10381372,808376,206.05,R,Chepstow Contract Rentals,,
Infrastructure and Networks,Highways,Chief Executive's Unit,Transport,Contract Hire and Operating Leases,Plant Hire Charge,,04/07/2014,10381320,808393,82.88,R,Speedy Asset Services Limited,,
Infrastructure and Networks,Home to School Transport Dept,Chief Executive's Unit,Transport,Direct Transport Costs,Vechicles Repairs and Maintenance,,18/07/2014,10383694,10058130,180.00,R,Chris Spiteri & Sons,,
Infrastructure and Networks,Home to School Transport Dept,Chief Executive's Unit,Transport,Direct Transport Costs,Vechicles Repairs and Maintenance,,04/07/2014,10381668,10057788,147.00,R,Chris Spiteri & Sons,,
Infrastructure and Networks,Home to School Transport Dept,Chief Executive's Unit,Transport,Direct Transport Costs,Vechicles Repairs and Maintenance,,04/07/2014,10381652,10057874,-135.00,R,Newport Transport Ltd,,
Infrastructure and Networks,Highways,Chief Executive's Unit,Transport,Direct Transport Costs,Vechicles Repairs and Maintenance,,04/07/2014,10381365,808415,238.00,R,Richard Griffiths Ltd,,
Infrastructure and Networks,Transport Department,Chief Executive's Unit,Transport,Direct Transport Costs,Spare Parts,,08/07/2014,10381725,0,-31.96,R,Mon & Border Motor Factors Ltd,,
Infrastructure and Networks,Transport Department,Chief Executive's Unit,Transport,Direct Transport Costs,Spare Parts,,08/07/2014,10381795,0,487.76,R,Dennis Eagle Limited,,
Infrastructure and Networks,Transport Department,Chief Executive's Unit,Transport,Direct Transport Costs,Spare Parts,,18/07/2014,10383311,0,-87.74,R,Motorcare,,
Infrastructure and Networks,Transport Department,Chief Executive's Unit,Transport,Direct Transport Costs,Spare Parts,,18/07/2014,10383322,0,"1,019.56",R,Scarab Sweepers Ltd,,
Infrastructure and Networks,Transport Department,Chief Executive's Unit,Transport,Direct Transport Costs,Spare Parts,,18/07/2014,10383424,0,28.85,R,Fast Fluid Power Ltd,,
Infrastructure and Networks,Transport Department,Chief Executive's Unit,Transport,Direct Transport Costs,Spare Parts,,18/07/2014,10383366,0,65.64,R,Newport Ford,,
Infrastructure and Networks,Transport Department,Chief Executive's Unit,Transport,Direct Transport Costs,Spare Parts,,18/07/2014,10383454,0,69.39,R,Johnston Sweepers Limited,,
Infrastructure and Networks,Transport Department,Chief Executive's Unit,Transport,Direct Transport Costs,Spare Parts,,18/07/2014,10383491,0,4.40,R,Watts Truck & Van,,
Infrastructure and Networks,Transport Department,Chief Executive's Unit,Transport,Direct Transport Costs,Spare Parts,,18/07/2014,10383278,0,50.03,R,Abergavenny Brake & Clutch,,
Infrastructure and Networks,Transport Department,Chief Executive's Unit,Transport,Direct Transport Costs,Spare Parts,,18/07/2014,10383502,0,114.13,R,Dennis Eagle Limited,,
Infrastructure and Networks,Transport Department,Chief Executive's Unit,Transport,Direct Transport Costs,Spare Parts,,18/07/2014,10383457,0,70.00,R,Shorts Auto Elect. Swansea Ltd,,
Infrastructure and Networks,Transport Department,Chief Executive's Unit,Transport,Direct Transport Costs,Spare Parts,,18/07/2014,10383457,0,70.00,R,Shorts Auto Elect. Swansea Ltd,,
Infrastructure and Networks,Transport Department,Chief Executive's Unit,Transport,Direct Transport Costs,Spare Parts,,18/07/2014,10383464,0,59.60,R,ATS Euromaster Ltd,,
Infrastructure and Networks,Transport Department,Chief Executive's Unit,Transport,Direct Transport Costs,Spare Parts,,18/07/2014,10383465,0,110.69,R,Watts Truck & Van,,
Infrastructure and Networks,Home to School Transport Dept,Chief Executive's Unit,Transport,Direct Transport Costs,Spare Parts,,11/07/2014,10383073,10058045,125.00,R,Fast Rads,,
Infrastructure and Networks,Home to School Transport Dept,Chief Executive's Unit,Transport,Direct Transport Costs,Spare Parts,,04/07/2014,10381653,10057871,38.00,R,Fast Rads,,
Infrastructure and Networks,Transport Department,Chief Executive's Unit,Transport,Direct Transport Costs,Tyres And Tubes,,18/07/2014,10383346,0,16.80,R,Celtic Tyre Services (Cardiff) Ltd,,
Infrastructure and Networks,Transport Department,Chief Executive's Unit,Transport,Direct Transport Costs,Tyres And Tubes,,18/07/2014,10383489,0,201.00,R,ATS Euromaster Ltd,,
Infrastructure and Networks,Transport Department,Chief Executive's Unit,Transport,Direct Transport Costs,Tyres And Tubes,,18/07/2014,10383334,0,455.40,R,Celtic Tyre Services (Cardiff) Ltd,,
Infrastructure and Networks,Transport Department,Chief Executive's Unit,Transport,Direct Transport Costs,Tyres And Tubes,,18/07/2014,10383396,0,72.30,R,Celtic Tyre Services (Cardiff) Ltd,,
Infrastructure and Networks,Transport Department,Chief Executive's Unit,Transport,Direct Transport Costs,Tyres And Tubes,,18/07/2014,10383500,0,82.85,R,ATS Euromaster Ltd,,
Infrastructure and Networks,Transport Department,Chief Executive's Unit,Transport,Direct Transport Costs,Tyres And Tubes,,18/07/2014,10383337,0,250.00,R,Celtic Tyre Services (Cardiff) Ltd,,
Infrastructure and Networks,Transport Department,Chief Executive's Unit,Transport,Direct Transport Costs,Tyres And Tubes,,18/07/2014,10383340,0,144.60,R,Celtic Tyre Services (Cardiff) Ltd,,
Infrastructure and Networks,Transport Department,Chief Executive's Unit,Transport,Direct Transport Costs,Tyres And Tubes,,18/07/2014,10383336,0,54.10,R,Celtic Tyre Services (Cardiff) Ltd,,
Infrastructure and Networks,Home to School Transport Dept,Chief Executive's Unit,Transport,Direct Transport Costs,Tyres And Tubes,,04/07/2014,10381663,10056684,83.01,R,ATS Euromaster Ltd,,
Infrastructure and Networks,Home to School Transport Dept,Chief Executive's Unit,Transport,Direct Transport Costs,Petrol,,11/07/2014,10382975,0,729.60,R,REDACTED PERSONAL DATA,,
Infrastructure and Networks,Transport Department,Chief Executive's Unit,Transport,Direct Transport Costs,M.O.T. Test,,18/07/2014,10383486,0,59.55,R,Autocare Centre Chepstow,,
Infrastructure and Networks,Transport Department,Chief Executive's Unit,Transport,Direct Transport Costs,All Other Non-Contract Transport Work.,,18/07/2014,10383029,0,148.00,R,Kelvedon Coach Painting Co,,
Infrastructure and Networks,Transport Department,Chief Executive's Unit,Transport,Direct Transport Costs,All Other Non-Contract Transport Work.,,18/07/2014,10383448,0,215.20,R,Uk Windscreen Ltd,,
Infrastructure and Networks,Transport Department,Chief Executive's Unit,Transport,Direct Transport Costs,All Other Non-Contract Transport Work.,,18/07/2014,10383499,0,70.00,R,NW Alignments Ltd,,
Infrastructure and Networks,Home to School Transport Dept,Chief Executive's Unit,Transport,Public Transport,Travel Concessions,,08/07/2014,10381802,0,"1,594.48",R,Stagecoach Services Ltd,,
Infrastructure and Networks,Home to School Transport Dept,Chief Executive's Unit,Transport,Public Transport,Travel Concessions,,18/07/2014,10383841,0,4.49,R,Newport Transport Ltd,,
Infrastructure and Networks,Home to School Transport Dept,Chief Executive's Unit,Transport,Public Transport,Travel Concessions,,18/07/2014,10383842,0,770.14,R,New Adventure Travel,,
Infrastructure and Networks,Highways,Chief Executive's Unit,Current Assets,Inventories,Stock Received Suspense,,11/07/2014,10382623,808481,"9,748.40",R,Tata Steel UK Ltd,,
Infrastructure and Networks,Highways,Chief Executive's Unit,Current Assets,Inventories,Stock Received Suspense,,11/07/2014,10383101,808547,"1,356.60",R,Wolseley UK Ltd t/a Burdens,,
Infrastructure and Networks,Highways,Chief Executive's Unit,Current Assets,Inventories,Stock Received Suspense,,11/07/2014,10382728,808008,520.50,R,Cambrian Group UK,,
Infrastructure and Networks,Highways,Chief Executive's Unit,Current Assets,Inventories,Stock Received Suspense,,25/07/2014,10386001,808585,"3,558.00",R,Hill & Smith Ltd,,
Control Division,Control Dept,Control,Current Liabilities,Short Term Creditors,Resource Link Payments,,08/07/2014,10381560,0,"6,816.02",R,Monmouthshire C.C.,,
Control Division,Control Dept,Control,Current Liabilities,Short Term Creditors,Resource Link Payments,,11/07/2014,10381565,0,208.45,R,HMCTS Wales Enforcement Office,,
Control Division,Control Dept,Control,Current Liabilities,Short Term Creditors,Resource Link Payments,,08/07/2014,10381557,0,12.56,R,Welsh Hospitals & Health Service,,
Control Division,Control Dept,Control,Current Liabilities,Short Term Creditors,Resource Link Payments,,08/07/2014,10381563,0,157.66,R,Torfaen CBC,,
Schools Total,Schools,MCC Schools,Employees,Direct Employee Expenses,Salaries,,08/07/2014,10382026,0,357.12,R,New Directions Recruitment Ltd,,
Schools Total,Schools,MCC Schools,Employees,Direct Employee Expenses,Salaries,,15/07/2014,10383175,0,151.11,R,New Directions Recruitment Ltd,,
Schools Total,School Group 7 � Pupil Capacity 501-1800,MCC Schools,Employees,Direct Employee Expenses,Agency Staff,,08/07/2014,10382099,80028957,625.00,R,ITN Mark Education,,
Schools Total,School Group 7 � Pupil Capacity 501-1800,MCC Schools,Employees,Direct Employee Expenses,Agency Staff,,08/07/2014,10382101,80029144,490.00,R,Education People Ltd,,
Schools Total,School Group 7 � Pupil Capacity 501-1800,MCC Schools,Employees,Direct Employee Expenses,Agency Staff,,18/07/2014,10384176,80029143,500.00,R,Education Staffing Solutions Ltd,,
Schools Total,School Group 7 � Pupil Capacity 501-1800,MCC Schools,Employees,Direct Employee Expenses,Agency Staff,,18/07/2014,10384195,80029304,120.00,R,Affinity Education Limited,,
Schools Total,School Group 7 � Pupil Capacity 501-1800,MCC Schools,Employees,Direct Employee Expenses,Agency Staff,,18/07/2014,10384201,80029310,520.00,R,Capita Education Resourcing,,
Schools Total,School Group 7 � Pupil Capacity 501-1800,MCC Schools,Employees,Direct Employee Expenses,Agency Staff,,01/07/2014,10381044,80028955,"1,029.00",R,New Directions Recruitment Ltd,,
Schools Total,School Group 7 � Pupil Capacity 501-1800,MCC Schools,Employees,Direct Employee Expenses,Agency Staff,,04/07/2014,10379998,80027545,921.72,R,New Directions Recruitment Ltd,,
Schools Total,School Group 7 � Pupil Capacity 501-1800,MCC Schools,Employees,Direct Employee Expenses,Agency Staff,,18/07/2014,10384204,80029309,478.75,R,Teaching Personnel,,
Schools Total,School Group 7 � Pupil Capacity 501-1800,MCC Schools,Employees,Direct Employee Expenses,Agency Staff,,18/07/2014,10384205,80029137,120.00,R,Affinity Education Limited,,
Schools Total,School Group 7 � Pupil Capacity 501-1800,MCC Schools,Employees,Direct Employee Expenses,Agency Staff,,18/07/2014,10383743,0,125.00,R,REDACTED DATA,,
Schools Total,School Group 7 � Pupil Capacity 501-1800,MCC Schools,Employees,Direct Employee Expenses,Agency Staff,,01/07/2014,10381080,0,111.00,R,Meridian Business Support,,
Schools Total,School Group 7 � Pupil Capacity 501-1800,MCC Schools,Employees,Direct Employee Expenses,Agency Staff,,18/07/2014,10383854,0,110.00,R,Education Staffing Solutions Ltd,,
Schools Total,School Group 1 � Pupil Capacity 1-143,MCC Schools,Employees,Direct Employee Expenses,Agency Staff,,11/07/2014,10382671,80027915,72.00,R,New Directions Recruitment Ltd,,
Schools Total,School Group 1 � Pupil Capacity 1-143,MCC Schools,Employees,Direct Employee Expenses,Agency Staff,,11/07/2014,10382654,80027911,169.70,R,Teaching Personnel,,
Schools Total,School Group 1 � Pupil Capacity 1-143,MCC Schools,Employees,Direct Employee Expenses,Agency Staff,,08/07/2014,10381401,0,171.70,R,Teaching Personnel,,
Schools Total,School Group 1 � Pupil Capacity 1-143,MCC Schools,Employees,Direct Employee Expenses,Agency Staff,,08/07/2014,10381402,0,84.85,R,Teaching Personnel,,
Schools Total,SCHGRP3 � School Group 3 � Pupil Capacity 315-500,MCC Schools,Employees,Direct Employee Expenses,Agency Staff,,08/07/2014,10382298,0,240.00,R,Back Office Support Services Ltd (Education Supply Pool),,
Schools Total,SCHGRP3 � School Group 3 � Pupil Capacity 315-500,MCC Schools,Employees,Direct Employee Expenses,Agency Staff,,04/07/2014,10381877,0,704.60,R,Teaching Personnel,,
Schools Total,SCHGRP3 � School Group 3 � Pupil Capacity 315-500,MCC Schools,Employees,Direct Employee Expenses,Agency Staff,,04/07/2014,10381370,80029095,165.58,R,New Directions Recruitment Ltd,,
Schools Total,School Group 2 � Pupil Capacity 144-314,MCC Schools,Employees,Direct Employee Expenses,Agency Staff,,18/07/2014,10384012,0,409.50,R,Teaching 4 Wales Ltd,,
Schools Total,School Group 2 � Pupil Capacity 144-314,MCC Schools,Employees,Direct Employee Expenses,Agency Staff,,18/07/2014,10383881,0,"1,125.00",R,Teaching 4 Wales Ltd,,
Schools Total,SCHGRP3 � School Group 3 � Pupil Capacity 315-500,MCC Schools,Employees,Direct Employee Expenses,Agency Staff,,11/07/2014,10382216,0,"1,651.70",R,Teaching Personnel,,
Schools Total,SCHGRP3 � School Group 3 � Pupil Capacity 315-500,MCC Schools,Employees,Direct Employee Expenses,Agency Staff,,11/07/2014,10382415,0,361.08,R,Travail Employment Group,,
Schools Total,SCHGRP3 � School Group 3 � Pupil Capacity 315-500,MCC Schools,Employees,Direct Employee Expenses,Agency Staff,,15/07/2014,10383439,0,361.08,R,Travail Employment Group,,
Schools Total,School Group 2 � Pupil Capacity 144-314,MCC Schools,Employees,Direct Employee Expenses,Agency Staff,,18/07/2014,10384011,0,131.30,R,New Directions Recruitment Ltd,,
Schools Total,School Group 2 � Pupil Capacity 144-314,MCC Schools,Employees,Direct Employee Expenses,Agency Staff,,25/07/2014,10383958,0,268.00,R,Sportstars Limited,,
Schools Total,School Group 2 � Pupil Capacity 144-314,MCC Schools,Employees,Direct Employee Expenses,Agency Staff,,25/07/2014,10385058,0,201.00,R,Sportstars Limited,,
Schools Total,School Group 2 � Pupil Capacity 144-314,MCC Schools,Employees,Direct Employee Expenses,Agency Staff,,18/07/2014,10383818,80027685,630.00,R,Teaching 4 Wales Ltd,,
Schools Total,School Group 2 � Pupil Capacity 144-314,MCC Schools,Employees,Direct Employee Expenses,Agency Staff,,04/07/2014,10381936,80027685,320.00,R,Teaching 4 Wales Ltd,,
Schools Total,School Group 2 � Pupil Capacity 144-314,MCC Schools,Employees,Direct Employee Expenses,Agency Staff,,08/07/2014,10382167,0,679.65,R,New Directions Recruitment Ltd,,
Schools Total,School Group 2 � Pupil Capacity 144-314,MCC Schools,Employees,Direct Employee Expenses,Agency Staff,,04/07/2014,10381193,0,679.65,R,New Directions Recruitment Ltd,,
Schools Total,School Group 2 � Pupil Capacity 144-314,MCC Schools,Employees,Direct Employee Expenses,Agency Staff,,29/07/2014,10385123,0,85.00,R,Bay Resourcing,,
Schools Total,School Group 2 � Pupil Capacity 144-314,MCC Schools,Employees,Direct Employee Expenses,Agency Staff,,29/07/2014,10385125,0,381.55,R,New Directions Recruitment Ltd,,
Schools Total,School Group 2 � Pupil Capacity 144-314,MCC Schools,Employees,Direct Employee Expenses,Agency Staff,,29/07/2014,10385126,0,381.55,R,New Directions Recruitment Ltd,,
Schools Total,School Group 2 � Pupil Capacity 144-314,MCC Schools,Employees,Direct Employee Expenses,Agency Staff,,29/07/2014,10385130,0,126.50,R,Bay Resourcing,,
Schools Total,School Group 2 � Pupil Capacity 144-314,MCC Schools,Employees,Direct Employee Expenses,Agency Staff,,29/07/2014,10385139,0,110.00,R,New Directions Recruitment Ltd,,
Schools Total,School Group 2 � Pupil Capacity 144-314,MCC Schools,Employees,Direct Employee Expenses,Agency Staff,,29/07/2014,10385142,0,381.55,R,New Directions Recruitment Ltd,,
Schools Total,School Group 2 � Pupil Capacity 144-314,MCC Schools,Employees,Direct Employee Expenses,Agency Staff,,08/07/2014,10382060,80028181,80.00,R,Accent on Education,,
Schools Total,School Group 2 � Pupil Capacity 144-314,MCC Schools,Employees,Direct Employee Expenses,Agency Staff,,08/07/2014,10382061,80028181,135.00,R,Accent on Education,,
Schools Effectiveness Grant & Welsh In Education Grant,Schools Better Schools Fund,MCC Schools,Employees,Direct Employee Expenses,Agency Staff,,25/07/2014,10385401,0,71.09,R,New Directions Recruitment Ltd,,
Schools Effectiveness Grant & Welsh In Education Grant,Schools Better Schools Fund,MCC Schools,Employees,Direct Employee Expenses,Agency Staff,,08/07/2014,10382066,80028940,135.93,R,New Directions Recruitment Ltd,,
Schools Effectiveness Grant & Welsh In Education Grant,Schools Better Schools Fund,MCC Schools,Employees,Direct Employee Expenses,Agency Staff,,04/07/2014,10381637,80028184,125.00,R,Accent on Education,,
Infrastructure and Networks,Property Services & Facilities Management,Chief Executive's Unit,Employees,Direct Employee Expenses,Agency Staff,,11/07/2014,10381888,0,810.00,R,Randstad Employment Bureau Ltd,,
Infrastructure and Networks,Highways,Chief Executive's Unit,Employees,Direct Employee Expenses,Agency Staff,,11/07/2014,10381888,0,183.89,R,Randstad Employment Bureau Ltd,,
Infrastructure and Networks,Waste and Street Services,Chief Executive's Unit,Employees,Direct Employee Expenses,Agency Staff,,11/07/2014,10381156,0,414.77,R,Randstad Employment Bureau Ltd,,
Infrastructure and Networks,Waste and Street Services,Chief Executive's Unit,Employees,Direct Employee Expenses,Agency Staff,,11/07/2014,10381888,0,75.75,R,Randstad Employment Bureau Ltd,,
Infrastructure and Networks,Waste and Street Services,Chief Executive's Unit,Employees,Direct Employee Expenses,Agency Staff,,11/07/2014,10381888,0,414.77,R,Randstad Employment Bureau Ltd,,
Infrastructure and Networks,Waste and Street Services,Chief Executive's Unit,Employees,Direct Employee Expenses,Agency Staff,,11/07/2014,10381888,0,16.58,R,Randstad Employment Bureau Ltd,,
Infrastructure and Networks,Waste and Street Services,Chief Executive's Unit,Employees,Direct Employee Expenses,Agency Staff,,15/07/2014,10382795,0,414.77,R,Randstad Employment Bureau Ltd,,
Infrastructure and Networks,Waste and Street Services,Chief Executive's Unit,Employees,Direct Employee Expenses,Agency Staff,,15/07/2014,10382795,0,21.41,R,Randstad Employment Bureau Ltd,,
Children Services,Children Services Teams,Social Care and Health,Employees,Direct Employee Expenses,Agency Staff,,11/07/2014,10381156,0,67.95,R,Randstad Employment Bureau Ltd,,
Children Services,Children Services Teams,Social Care and Health,Employees,Direct Employee Expenses,Agency Staff,,11/07/2014,10381156,0,"1,265.03",R,Randstad Employment Bureau Ltd,,
Children Services,Children Services Teams,Social Care and Health,Employees,Direct Employee Expenses,Agency Staff,,15/07/2014,10382795,0,"1,265.03",R,Randstad Employment Bureau Ltd,,
Children Services,Children Services Teams,Social Care and Health,Employees,Direct Employee Expenses,Agency Staff,,11/07/2014,10381888,0,25.20,R,Randstad Employment Bureau Ltd,,
Children Services,Children Services Teams,Social Care and Health,Employees,Direct Employee Expenses,Agency Staff,,11/07/2014,10381156,0,16.65,R,Randstad Employment Bureau Ltd,,
Community Care,Community Learning Disability Team,Social Care and Health,Employees,Direct Employee Expenses,Agency Staff,,11/07/2014,10381156,0,"1,599.51",R,Randstad Employment Bureau Ltd,,
Community Care,Community Care Team,Social Care and Health,Employees,Direct Employee Expenses,Agency Staff,,18/07/2014,10381681,10025957,320.70,R,REDACTED PERSONAL DATA,,
Schools Total,School Group 7 � Pupil Capacity 501-1800,MCC Schools,Employees,Indirect Employee Expenses,Replacement,,11/07/2014,10383197,0,95.00,R,Education Staffing Solutions Ltd,,
Schools Total,School Group 7 � Pupil Capacity 501-1800,MCC Schools,Employees,Indirect Employee Expenses,Replacement,,11/07/2014,10383201,0,190.00,R,Education Staffing Solutions Ltd,,
Schools Total,School Group 7 � Pupil Capacity 501-1800,MCC Schools,Employees,Indirect Employee Expenses,Replacement,,25/07/2014,10385163,0,341.00,R,Education Staffing Solutions Ltd,,
Schools Total,School Group 7 � Pupil Capacity 501-1800,MCC Schools,Employees,Indirect Employee Expenses,Replacement,,04/07/2014,10381188,0,123.00,R,Education Staffing Solutions Ltd,,
Schools Total,School Group 2 � Pupil Capacity 144-314,MCC Schools,Employees,Indirect Employee Expenses,Replacement,,11/07/2014,10381989,0,130.00,R,New Directions Recruitment Ltd,,
Schools Total,School Group 2 � Pupil Capacity 144-314,MCC Schools,Employees,Indirect Employee Expenses,Replacement,,11/07/2014,10381987,0,83.00,R,New Directions Recruitment Ltd,,
Schools Effectiveness Grant & Welsh In Education Grant,Schools Better Schools Fund,MCC Schools,Employees,Indirect Employee Expenses,Replacement,,25/07/2014,10385167,0,123.00,R,Education Staffing Solutions Ltd,,
Schools Effectiveness Grant & Welsh In Education Grant,Schools Better Schools Fund,MCC Schools,Employees,Indirect Employee Expenses,Replacement,,04/07/2014,10381185,0,123.00,R,Education Staffing Solutions Ltd,,
Schools Effectiveness Grant & Welsh In Education Grant,Schools Better Schools Fund,MCC Schools,Employees,Indirect Employee Expenses,Replacement,,01/07/2014,10380071,0,57.50,R,Teaching 4 Wales Ltd,,
Schools Total,School Group 2 � Pupil Capacity 144-314,MCC Schools,Employees,Direct Employee Expenses,Subsistence,,18/07/2014,10383666,0,1.00,R,REDACTED DATA,,
Infrastructure and Networks,Home to School Transport Dept,Chief Executive's Unit,Employees,Direct Employee Expenses,Subsistence,,18/07/2014,10384568,0,5.00,R,REDACTED DATA,,
